Cogmind - Beta 16.1 @@@ ROGUE MODE // 2026.03.05 @ 22:03:01 Player: alice_fexa Result: Escaped! Performance ------------- Evolutions (9) 4500 Regions Visited (36) 7200 Robots Destroyed (738) 3690 Value Destroyed (36238) 36238 Prototype IDs (45) 900 Alien Tech Used (0) 0 Bonus (32590) 32590 TOTAL SCORE: 85118 Bonus ------- High Alert Combat Kills 14153 Follower Combat Kills 4777 Hunted by Unchained 500 Entered Garrisons 1800 Used RIF Installer 5000 Network Hubs Disabled 800 Built Enhanced Grunts 300 Met R17 at Cetus 500 Met R17 at Research 2000 Win 3000 Friendly Fire -240 Cogmind --------- Core Integrity 1348/1600 Matter 300/300 Energy 161/220 System Corruption 16% Temperature Cool (12) Movement Flying (23) Location To Epsilon Eridani Parts ------- > --- POWER (2) -------- Light Antimatter Reactor Micro Antimatter Reactor > --- PROPULSION (6) --- Xenon Bombardment Thruster Xenon Bombardment Thruster Xenon Bombardment Thruster Xenon Bombardment Thruster Electron Diverter Electron Diverter > --- UTILITY (12) ----- Advanced Cooling System Advanced Coolant Injector Advanced Weight Redist. System Advanced Visual Processing Unit Terrain Scan Processor Advanced Melee Analysis Suite Experimental EM Shield Hacking Suite Improved System Shield Improved Dynamic Insulation System Improved System Restoration Module > --- WEAPON (5) ------- Linear Accelerator Shock Maul > --- INVENTORY (5) ---- Light Antimatter Reactor Energy Well (350) Linear Accelerator Gamma Bomb Array Tiamat Missile Launcher Peak State ------------ > --- POWER ------------ Quantum Reactor Light Quantum Reactor > --- PROPULSION ------- Biometal Heavy Treads Advanced Heavy Siege Treads Advanced Heavy Siege Treads > --- UTILITY ---------- Advanced Cooling System Huge Storage Unit Experimental Optical Array Experimental Targeting Computer Experimental Core Analyzer Advanced Kinecellerator Centrium Medium Armor Plating Experimental EM Shield Relay Coupler [NC] Long-range Tractor Beam > --- WEAPON ----------- KE Penetrator KE Penetrator Railgun Railgun Railgun > --- INVENTORY -------- Quantum Reactor Light Quantum Reactor Biometal Heavy Treads Advanced Cooling System Energy Well Improved Matter Compressor Advanced Signal Interpreter Improved Medium Armor Plating Graphene Brace Experimental Focal Shield Improved Force Field Advanced Force Field Relay Coupler [Heavy] Improved Component Analysis Suite Heavy Machine Gun KE Penetrator KE Penetrator KE Penetrator Enhanced Coil Gun Gamma Bomb Array Tiamat Missile Launcher Tiamat Missile Launcher Improved Remote Datajack Shock Maul [Rating: 188] Favorites ----------- Power Quantum Reactor Engine Cooled Ion Engine Power Core Enhanced Fission Core Reactor Quantum Reactor Propulsion Light Treads Treads Light Treads Wheel Armored Huge Wheel Hover Unit Improved Antigrav System Flight Unit Xenon Bombardment Thruster Utility Huge Storage Unit Device Seismic Detector Storage Huge Storage Unit Processor Experimental Core Analyzer Hackware Relay Coupler [NC] Protection Centrium Medium Armor Plating Weapon KE Penetrator Energy Gun Enhanced Quantum Rifle Energy Cannon EM Pulse Cannon Ballistic Gun KE Penetrator Ballistic Cannon Light Cannon Launcher Heavy Rocket Launcher Special Weapon Improved Remote Datajack Impact Weapon Power Maul Special Melee Weapon Datajack Build | -11 -10 -10 -9 -9 -8 -8 -8 -8 -8 -7 -7 -7 -7 -7 -7 -7 -7 -7 -6 -6 -6 -6 -6 -6 -5 -5 -5 -5 -5 -5 -4 -4 -3 -3 -2 -1 ------- Run | Yrd Mat Min Mat Min Mat Gar Mat Sto Gar Fac Was Fac Gar Fac Gar Fac Low Zio Pro Fac Ext Cet Arc Hub Fac Gar Fac Gar Fac Gar Fac Gar Res Gar Res Acc Slots Evolved 18 | . . . 2 . 2 . . . . 2 . . . . . . . . . 2 . . . . 2 . . . . . 2 . 2 . 2 2 Power 1 | . . . . . . . . . . . . . . . . . . . . . . . . . 1 . . . . . . . . . . . Propulsion 4 | . . . 1 . . . . . . 1 . . . . . . . . . . . . . . . . . . . . 1 . 1 . . . Utility 10 | . . . 1 . 1 . . . . 1 . . . . . . . . . 1 . . . . 1 . . . . . 1 . 1 . 1 2 Weapon 3 | . . . . . 1 . . . . . . . . . . . . . . 1 . . . . . . . . . . . . . . 1 . Parts Attached 456 | 7 9 2 10 6 13 13 5 11 7 3 10 12 12 14 19 7 . 10 1 37 11 8 9 29 19 17 25 7 1 26 10 10 15 6 16 39 Power 42 | 1 1 . 4 . . . . . 1 . 1 . . . 5 1 . . 1 2 . . . 1 2 4 5 . . 2 . 1 . . 5 5 Engine 12 | 1 1 . 4 . . . . . 1 . . . . . 1 1 . . 1 1 . . . . . 1 . . . . . . . . . . Core 9 | . . . . . . . . . . . . . . . 4 . . . . . . . . . . . 5 . . . . . . . . . Reactor 21 | . . . . . . . . . . . 1 . . . . . . . . 1 . . . 1 2 3 . . . 2 . 1 . . 5 5 Propulsion 77 | 2 . . 3 2 7 4 2 3 4 1 2 . 2 1 5 . . 1 . 1 2 1 2 2 2 4 1 . . 3 1 2 2 . . 15 Treads 62 | 2 . . 3 2 7 4 2 3 4 1 2 . 2 1 4 . . 1 . 1 2 1 2 2 2 4 1 . . 3 1 2 2 . . 1 Leg . | . . . . . . . . . . . . . . . . . . . . . . . . . . . . . . . . . . . . . Wheel 2 | . . . . . . . . . . . . . . . 1 . . . . . . . . . . . . . . . . . . . . 1 Hover 6 | . . . . . . . . . . . . . . . . . . . . . . . . . . . . . . . . . . . . 6 Flight 7 | . . . . . . . . . . . . . . . . . . . . . . . . . . . . . . . . . . . . 7 Utility 209 | 1 4 1 3 2 1 3 2 3 1 2 6 9 6 8 5 4 . 9 . 24 5 2 6 20 9 7 11 6 1 10 3 4 8 4 6 13 Device 97 | . . . 1 . 1 1 1 . . . 2 4 3 3 1 4 . 1 . 11 2 1 5 16 4 4 9 . 1 2 2 3 5 2 2 6 Storage 13 | 1 2 . 1 . . . . . . . 1 2 . . . . . . . 2 . . . 2 . . . 1 . . . . 1 . . . Processor 27 | . 1 . . 1 . . . 1 . . . . 1 . 1 . . 7 . 2 . . . 1 2 1 . 1 . 1 . . 2 1 1 3 Hackware 26 | . . . . . . . . . . . 1 2 1 . 1 . . 1 . 3 . . 1 . 1 . 2 2 . 6 1 . . 1 . 3 Protection 46 | . 1 1 1 1 . 2 1 2 1 2 2 1 1 5 2 . . . . 6 3 1 . 1 2 2 . 2 . 1 . 1 . . 3 1 Artifact . | . . . . . . . . . . . . . . . . . . . . . . . . . . . . . . . . . . . . . Weapon 128 | 3 4 1 . 2 5 6 1 5 1 . 1 3 4 5 4 2 . . . 10 4 5 1 6 6 2 8 1 . 11 6 3 5 2 5 6 Energy Gun 12 | 2 . . . . . . . . . . . . . . 1 1 . . . 1 . . . . . 1 1 1 . 4 . . . . . . Energy Cannon 6 | . . . . . . . 1 . . . . 1 1 . . . . . . . . . . 1 1 . 1 . . . . . . . . . Ballistic Gun 81 | 1 . . . . 3 5 . 3 1 . . 2 2 5 3 1 . . . 7 3 5 1 4 3 1 5 . . 7 3 3 3 1 5 4 Ballistic Cannon 4 | . 2 . . . . . . . . . . . . . . . . . . . . . . . 1 . . . . . . . . . . 1 Launcher 13 | . 1 . . 2 2 . . 1 . . . . 1 . . . . . . 1 . . . 1 . . . . . . 1 . 2 1 . . Special Weapon 7 | . . . . . . . . 1 . . 1 . . . . . . . . 1 1 . . . 1 . . . . . 1 . . . . 1 Impact Weapon 4 | . 1 . . . . 1 . . . . . . . . . . . . . . . . . . . . 1 . . . 1 . . . . . Slashing Weapon . | . . . . . . . . . . . . . . . . . . . . . . . . . . . . . . . . . . . . . Piercing Weapon . | . . . . . . . . . . . . . . . . . . . . . . . . . . . . . . . . . . . . . Special Melee Weapon 1 | . . 1 . . . . . . . . . . . . . . . . . . . . . . . . . . . . . . . . . . Unidentified Prototypes 24 | . . . 1 . . . . 2 . . . . 1 1 . . . 4 . 3 . 3 . 5 . . . . . . . . 3 . . 1 Corrupted Parts 9 | . . . . . . . . . . . . . . . 1 . . . . . 1 2 . . 2 . . . . 1 . . . . . 2 System Corruption 49 | . . . . . . . . . . . . . . . 9 . . . . . 3 2 . . 11 . . . . 9 . . . . . 15 Parts Lost 91 | . . 1 . 1 1 4 1 . . . . 1 . . 9 . . . 1 6 1 1 1 9 . 4 3 . . 8 . 1 . 1 22 15 Power 8 | . . . . . . . . . . . . . . . 1 . . . 1 . . . . . . . . . . 1 . . . . 2 3 Propulsion 19 | . . . . . 1 . 1 . . . . . . . 2 . . . . 2 . . 1 . . 1 1 . . 2 . . . . 3 5 Utility 29 | . . 1 . 1 . 2 . . . . . . . . 3 . . . . 3 . 1 . 2 . 1 . . . 1 . 1 . 1 10 2 Weapon 35 | . . . . . . 2 . . . . . 1 . . 3 . . . . 1 1 . . 7 . 2 2 . . 4 . . . . 7 5 Highest Loss Streak 19 | . . 1 . 1 1 2 1 . . . . 1 . . 5 . . . 1 4 1 1 1 2 . 2 1 . . 7 . 1 . 1 19 6 To Critical Strikes 1 | . . . . . . . . . . . . . . . . . . . . . . . 1 . . . . . . . . . . . . . Average Backups 21 | 2 13 14 15 19 19 19 19 20 20 19 19 16 22 23 21 22 23 23 22 22 24 24 22 23 22 22 21 22 23 23 23 23 23 23 23 8 Power 1 | . 1 1 1 1 1 1 1 1 . . . . 1 1 . 1 1 1 . . 1 2 2 2 1 1 1 1 1 1 2 1 1 1 1 . Propulsion 2 | 1 2 2 1 4 3 4 3 3 3 2 1 1 2 2 2 2 2 2 2 1 1 1 1 1 2 2 2 3 3 1 1 1 1 1 1 . Utility 8 | . 1 2 2 2 3 4 5 5 4 4 4 2 6 8 9 9 10 10 9 9 7 7 8 10 12 12 11 12 13 12 10 11 13 11 11 4 Weapon 8 | . 7 8 8 10 9 8 9 10 10 10 10 9 11 9 7 7 8 8 8 9 11 11 9 8 6 5 6 5 5 6 8 8 7 9 9 2 Tool/Special . | . . . . . . . . . . . . . . . . . . . . . . . . . . . . . . . . . . . . . Unused Backups 97 | . 3 . 5 1 4 3 2 3 2 . 3 1 2 2 5 3 . 2 . 8 3 6 1 6 4 1 2 2 . 7 . 4 1 4 1 6 Power 8 | . . . 1 . . . . . . . . . . . . 1 . . . . . 1 . 2 . . 1 . . 1 . . . . . 1 Propulsion 10 | . 2 . . . . . . . . . 2 . 1 . 2 . . . . . 1 2 . . . . . . . . . . . . . . Utility 40 | . . . 2 . . . 2 1 2 . . . . 2 3 1 . 2 . 5 . 1 1 4 1 . 1 2 . 2 . 1 1 2 . 4 Weapon 37 | . 1 . 2 1 4 3 . 2 . . 1 1 1 . . . . . . 3 1 2 . . 3 1 . . . 4 . 3 . 2 1 1 Tool/Special 2 | . . . . . . . . . . . . . . . . 1 . . . . 1 . . . . . . . . . . . . . . . Average Slot Usage (%) 89 | . 99 98 99 99 99 99 99 100 100 99 75 83 83 83 84 84 84 82 84 85 88 87 84 86 95 91 87 87 88 87 88 88 84 84 85 46 Engine 3 | . 14 14 11 11 8 9 9 9 9 7 3 . . . 4 6 7 7 7 4 . . . . . . . . . . . . . . . . Reactor 4 | . . . . . . . . . . . 3 7 7 7 . . . . . 1 6 6 6 6 11 11 2 . . 5 10 10 9 9 7 6 Treads 17 | . 27 28 33 33 26 27 26 27 27 30 22 15 15 14 11 15 15 15 15 12 15 14 12 13 19 16 10 11 11 10 15 15 13 14 12 1 Device 11 | . . . 10 11 9 9 9 9 9 7 . 17 15 14 14 15 15 13 15 8 18 13 14 13 10 7 6 13 11 6 10 10 13 13 16 9 Storage 6 | . 14 14 11 11 9 9 9 9 9 7 7 11 7 7 7 7 7 7 7 6 6 6 6 6 5 5 5 5 5 5 5 5 4 4 4 1 Processor 10 | . 12 4 . 1 9 9 9 9 9 7 1 . 6 7 7 7 7 7 7 12 13 13 13 13 17 17 17 17 17 17 15 15 14 14 12 3 Hackware 1 | . . . . . . . . . . . 1 . . . . . . . . 4 . . . . . . 4 . 5 6 5 5 4 4 3 1 Protection 5 | . 1 8 10 9 8 8 9 9 9 14 9 7 6 6 6 7 7 7 7 5 1 5 3 5 4 7 4 2 . 1 4 4 3 4 4 . Ballistic Gun 19 | . . . . . 26 24 26 24 22 22 20 19 19 23 16 15 15 15 21 23 24 26 26 25 18 19 18 22 23 15 17 19 18 18 20 6 Ballistic Cannon 2 | . 25 27 22 21 . . . . . . . . . . . . . . . . . . . . . . . . . . . . . . . . Peak Build Rating 188 | 6 9 9 15 16 25 32 34 32 33 38 73 67 72 73 73 68 66 75 76 96 92 116 121 129 125 137 137 136 117 122 140 142 165 166 188 121 Average Rating 90 | 4 8 8 13 14 22 26 33 31 31 37 58 62 66 71 58 66 66 67 73 82 85 101 116 120 117 129 125 124 116 110 134 137 156 162 182 87 On Entrance 74 | . 6 9 9 15 15 25 32 32 31 32 37 59 66 72 71 64 66 66 74 73 89 84 116 121 101 117 137 128 117 117 122 140 136 160 165 38 Avg Prop Armor Cover (%) 7 | . . . . . . . . . . . . . . . 9 . . . . . . 10 . . . 9 . . . . 5 4 . . . 3 Naked Turns . | . . . . . . . . . . . . . . . . . . . . . . . . . . . . . . . . . . . . . Heaviest Build 179 | 13 31 34 62 62 62 67 67 64 65 66 110 114 119 118 118 111 111 111 111 123 122 121 121 131 150 156 145 138 129 145 150 154 167 168 179 149 Greatest Support 235 | 40 40 40 60 60 60 60 60 60 60 80 140 140 150 150 150 145 145 150 150 150 145 150 160 160 136 155 155 155 155 160 187 187 235 235 235 75 Greatest Overweight (x) 28 | 2 . . 1 1 1 1 1 1 1 . 1 . . . 3 . . . . . 1 1 1 1 1 1 . . . . . . 1 . 28 9 Average Overweight (x) . | . . . . . 1 . 1 . . . . . . . 1 . . . . . . . . . 1 . . . . . . . . . . . Largest Inventory Capacity 25 | 8 15 15 20 20 20 20 20 20 20 20 20 25 25 25 25 25 25 25 25 25 25 25 25 25 25 25 25 25 25 25 25 25 25 25 25 25 Average Capacity 23 | 7 14 15 16 20 20 20 20 20 20 20 20 20 25 25 25 25 25 25 25 25 25 25 25 25 25 25 25 25 25 25 25 25 25 25 25 13 Most Carried 25 | 4 15 15 20 20 20 20 20 20 20 20 20 25 25 25 25 25 25 25 25 25 25 25 25 25 25 25 25 25 25 25 25 25 25 25 25 20 Average Carried 22 | 2 13 14 15 19 19 19 19 19 19 19 19 19 24 24 23 24 25 24 24 24 24 24 23 24 24 24 24 24 25 24 24 24 24 24 24 8 Final Capacity 25 | 8 15 15 20 20 20 20 20 20 20 20 20 25 25 25 25 25 25 25 25 25 25 25 25 25 25 25 25 25 25 25 25 25 25 25 25 5 Final Carried 25 | 4 15 14 20 20 20 20 20 20 20 20 20 25 25 25 25 25 25 25 24 23 25 25 25 25 25 25 25 25 25 25 25 25 25 25 22 5 Class Distribution -------------------- 41% | Scavenger-Tank 11% | Bothacker-Tank 9% | Mutant 8% | Tank 8% | Gunner 7% | Scavenger-Gunner 3% | Scavenger-Mutant Dominant Class ---------------- Mutant | -10/Materials Mutant | -10/Mines Mutant | -9/Materials Mutant | -9/Mines Scavenger-Gunner | -8/Materials Gunner | -8/Garrison Gunner | -8/Materials Commander-Gunner | -8/Storage Gunner | -8/Garrison Tank | -7/Factory Tank | -7/Waste Scavenger-Tank | -7/Factory Scavenger-Tank | -7/Garrison Scavenger-Tank | -7/Factory Scavenger-Tank | -7/Garrison Bothacker-Tank | -7/Factory Bothacker-Tank | -7/Lower Caves Bothacker-Tank | -7/Zion Bothacker-Tank | -6/Proximity Caves Tank | -6/Factory Tank | -6/Extension Scavenger-Tank | -6/Cetus Scavenger-Tank | -6/Archives Scavenger-Tank | -6/Hub_04(d) Scavenger-Gunner | -5/Factory Scavenger-Tank | -5/Garrison Bothacker-Tank | -5/Factory Scavenger-Tank | -5/Garrison Scavenger-Gunner | -5/Factory Scavenger-Tank | -5/Garrison Scavenger-Tank | -4/Factory Scavenger-Tank | -4/Garrison Scavenger-Tank | -3/Research Scavenger-Tank | -3/Garrison Scavenger-Tank | -2/Research Scavenger-Tank | -1/Access Resources | -11 -10 -10 -9 -9 -8 -8 -8 -8 -8 -7 -7 -7 -7 -7 -7 -7 -7 -7 -6 -6 -6 -6 -6 -6 -5 -5 -5 -5 -5 -5 -4 -4 -3 -3 -2 -1 ----------- Run | Yrd Mat Min Mat Min Mat Gar Mat Sto Gar Fac Was Fac Gar Fac Gar Fac Low Zio Pro Fac Ext Cet Arc Hub Fac Gar Fac Gar Fac Gar Fac Gar Res Gar Res Acc Matter Collected 32564 | 202 631 250 443 211 1152 718 481 311 615 67 828 784 1132 781 1643 429 69 41 691 2574 1039 345 369 2590 502 1430 2674 1067 . 1615 508 773 907 1249 2357 1086 Remotely 9177 | . . . . . . . . . . . . . . . . . . . . 973 . . . 1299 . 676 1384 360 . 169 109 320 306 1239 2342 . Salvage Created 39043 | . 506 171 418 147 1584 635 738 265 824 80 1362 1155 1317 781 1636 763 . . 429 2695 964 73 363 2724 291 2400 3968 1031 . 1261 600 1469 943 1448 4408 1594 Parts 1770 | . 26 7 33 14 95 37 34 16 53 4 21 42 58 37 69 39 . . 6 96 53 5 32 146 22 95 185 71 . 63 17 52 38 77 165 62 Haulers Intercepted 18 | . 1 . 2 . 3 . . 3 . . . 1 . . . . . . . 1 . . . 1 . . 1 . . . . . 1 . 1 3 Recyclers Shooed 18 | . . . . . 1 . . . . . . 5 . . . 3 . . . 4 . . . . . . 3 . . . . . . . 2 . Parts Field Recycled . | . . . . . . . . . . . . . . . . . . . . . . . . . . . . . . . . . . . . . Retrieved Matter . | . . . . . . . . . . . . . . . . . . . . . . . . . . . . . . . . . . . . . Parts Self-Destructed 7 | . . . . . . . . . . . . . . . . . 3 . 4 . . . . . . . . . . . . . . . . . Prevented . | . . . . . . . . . . . . . . . . . . . . . . . . . . . . . . . . . . . . . Parts Restored . | . . . . . . . . . . . . . . . . . . . . . . . . . . . . . . . . . . . . . Kills | -11 -10 -10 -9 -9 -8 -8 -8 -8 -8 -7 -7 -7 -7 -7 -7 -7 -7 -7 -6 -6 -6 -6 -6 -6 -5 -5 -5 -5 -5 -5 -4 -4 -3 -3 -2 -1 ------- Run | Yrd Mat Min Mat Min Mat Gar Mat Sto Gar Fac Was Fac Gar Fac Gar Fac Low Zio Pro Fac Ext Cet Arc Hub Fac Gar Fac Gar Fac Gar Fac Gar Res Gar Res Acc Combat Hostiles Destroyed 591 | . 10 7 12 7 37 20 15 2 23 . 5 12 21 9 27 8 . . 3 31 18 1 1 38 10 34 50 26 . 30 11 17 13 31 50 12 Melee 2 | . . . . . . . . . . . . . . . 1 . . . . . . . . . . . . . . . . . . . . 1 Guns 403 | . . . . . 23 9 10 2 14 . 5 11 7 9 14 5 . . 3 26 15 1 1 36 5 25 44 16 . 15 7 9 13 19 50 9 Cannons 27 | . 7 4 8 1 . . 1 . 1 . . 1 1 . 3 . . . . . . . . . . . . . . . . . . . . . AOE 150 | . 3 3 4 6 14 11 4 . 8 . . . 12 . 9 2 . . . 5 3 . . 2 5 9 5 10 . 15 4 4 . 12 . . Classes Destroyed 26 | . 5 1 4 . 1 . 3 . 2 . 1 . 2 1 . . . . 1 2 1 . . . . . . . . . . . 2 . . . Worker 19 | . . . 1 . 3 . . 1 . . . . . . . 2 . . . 1 . . . 1 . . 2 . . . . . 2 . 1 5 Builder 11 | . . . 1 . . . . . . . . . . . . 1 . . . . 2 . . 2 . . 2 . . . . . . . . 3 Tunneler 7 | . . . . . 1 . 1 . . . . . . . . . . . . . . . . 1 . . 3 . . . . . . . . 1 Hauler 18 | . 1 . 2 . 3 . . 3 . . . 1 . . . . . . . 1 . . . 1 . . 1 . . . . . 1 . 1 3 Recycler 46 | . 3 1 1 1 1 . . . . 1 . 7 . 6 . 4 . . . 9 . . . 2 . . 4 . . . . . . . 4 2 Mechanic 3 | . . . 1 . 1 . . . . . . . . . . . . . . . . . . . . . . . . . . . . . 1 . Operator 9 | . . . . . . . . . . . . . . 1 . . . . . . . . 7 . . . . . . . . . . . . 1 Watcher 33 | . 2 . . . 4 1 2 . . 1 . 1 . 1 . 2 . . . 2 3 1 . 3 . . 4 . . . 1 . 2 . . 3 Swarmer 138 | . 3 3 7 6 16 11 . . 8 . . . 10 . 7 . . . . 4 3 . . . 6 12 3 9 . 9 4 . 4 10 . 3 Cutter 9 | . . . . . . . . . . . . . 2 . . . . . . . . . . 3 . . . . . . . . . 4 . . Saboteur 7 | . . . . . . . . . . . . . . . . . . . . 1 . . . . . . 1 3 . . . . . 1 1 . Grunt 176 | . 7 3 2 . 14 6 9 . 7 . . 3 5 1 10 5 . . 3 8 7 . . 16 1 11 15 1 . 8 1 6 1 2 22 2 Brawler 11 | . . . . . . . . . 1 . . . . . . . . . . . . . . . . 1 2 1 . . 1 . . 1 4 . Duelist 23 | . . . . . . . 3 . . . . . . . 1 . . . . 1 2 . . . 1 2 8 1 . . . 1 . 1 2 . Protector 8 | . . . . . . . 1 . . . . . . . . . . . . 1 . . . 1 . . 2 . . . . . . . 3 . Sentry 75 | . . . 3 1 7 3 1 2 5 . . 2 1 4 4 1 . . . 2 3 . 1 4 . 4 6 2 . 3 3 4 1 8 . . Specialist 8 | . . . . . . . . . . . . . 1 . . . . . . 3 1 . . . . . . 1 . . . . . . 1 1 Hunter 34 | . . . . . . . 1 . 1 . . 1 2 . 3 . . . . 3 1 . . 2 . . 5 1 . 4 . 4 2 . 2 2 Programmer 79 | . . . . . . . . . 1 . . 6 . 4 2 2 . . . 7 . . . 4 2 2 8 7 . 6 2 1 2 4 15 4 Heavy 3 | . . . . . . . . . . . . . . . . . . . . 1 . . . 2 . . . . . . . . . . . . Behemoth 5 | . . . . . . . . . . . . . . . . . . . . . 1 . . . . 2 . . . 1 . 1 . . . . Compactor 5 | . . . . . . . . . . . 5 . . . . . . . . . . . . . . . . . . . . . . . . . Cetus Guard 1 | . . . . . . . . . . . . . . . . . . . . . . 1 . . . . . . . . . . . . . . Lightning 6 | . . . . . . . . . . . . . . . . . . . . . . . . 6 . . . . . . . . . . . . Striker 2 | . . . . . . . . . . . . . . . . . . . . . . . . . . . . . . . . . 2 . . . Executioner 1 | . . . . . . . . . . . . . . . . . . . . . . . . . . . . . . . . . 1 . . . Packrat 2 | . . . . . . . . . . . . . . . . . . . 2 . . . . . . . . . . . . . . . . . Samaritan 2 | . . . . . . . . . . . . . . . . . . . 2 . . . . . . . . . . . . . . . . . Assembled 1 | . . 1 . . . . . . . . . . . . . . . . . . . . . . . . . . . . . . . . . . Thug 1 | . . . . . . . . . . . . . . . . . . . . . . . 1 . . . . . . . . . . . . . Best Kill Streak 13 | . 3 3 5 3 13 4 6 1 4 1 1 5 5 2 12 7 . . 3 10 3 2 3 7 5 12 10 5 . 8 7 6 6 10 9 13 Combat Bots Only 12 | . 3 3 4 3 12 4 5 1 4 . 1 3 5 2 12 3 . . 3 9 3 1 1 6 5 12 8 5 . 8 7 6 4 10 9 6 Max Kills in Single Turn 6 | . 2 2 3 2 6 3 3 1 3 1 1 2 4 1 4 2 . . 1 3 3 1 2 3 3 5 3 4 . 4 4 2 2 3 2 2 Gunslinging 2 | . . . . . 1 . 1 . . . . . 1 . . . . . . 2 . . . . . . 2 . . . . . . 1 1 . Exploded 5 | . 2 2 3 2 5 3 2 . 3 . . . 4 . 4 2 . . . 3 3 . . 2 3 5 1 4 . 4 4 1 . 3 . . Melee 1 | . . . . . . . . . . . . . . . 1 . . . . . . . . . . . . . . . . . . . . 1 Uniques/NPCs Destroyed . | . . . . . . . . . . . . . . . . . . . . . . . . . . . . . . . . . . . . . Combat | -11 -10 -10 -9 -9 -8 -8 -8 -8 -8 -7 -7 -7 -7 -7 -7 -7 -7 -7 -6 -6 -6 -6 -6 -6 -5 -5 -5 -5 -5 -5 -4 -4 -3 -3 -2 -1 -------- Run | Yrd Mat Min Mat Min Mat Gar Mat Sto Gar Fac Was Fac Gar Fac Gar Fac Low Zio Pro Fac Ext Cet Arc Hub Fac Gar Fac Gar Fac Gar Fac Gar Res Gar Res Acc Hostile Shots Fired 2977 | . 32 24 40 28 94 63 29 7 59 . . 90 84 140 197 36 . . 33 241 46 9 . 321 34 152 233 62 . 124 39 32 32 80 363 253 Missed 702 | . 11 8 11 7 28 12 7 2 18 . . 23 25 44 46 7 . . 7 54 5 2 . 73 13 27 38 20 . 28 8 11 2 14 75 76 Hits 2275 | . 21 16 29 21 66 51 22 5 41 . . 67 59 96 151 29 . . 26 187 41 7 . 248 21 125 195 42 . 96 31 21 30 66 288 177 Melee 69 | . . 5 . . . . 2 . . . . . 4 . . . . . . . 1 . . . 2 7 19 . . . . . 3 3 23 . Projectile 2206 | . 21 11 29 21 66 51 20 5 41 . . 67 55 96 151 29 . . 26 187 40 7 . 248 19 118 176 42 . 96 31 21 27 63 265 177 AOE 16 | . . 2 . . . . . . 1 . . . 2 . . . . . . 2 3 . . 2 1 . . . . . . . . 3 . . Critical Strikes 104 | . 3 1 1 4 . 1 2 . . . . . 2 3 5 . . . 1 6 1 . 1 12 1 5 11 1 . 7 1 . . 4 26 5 Actively Blocked 10 | . . . . . . . . . . . . . . . . . . . . . . . . . . . . . . . . . . . 6 4 Part Disruptions 7 | . . . . . . . . . . . . 1 . 1 . . . . . . . . . 4 . . . . . . 1 . . . . . Damage Taken 37580 | . 283 343 409 264 973 740 515 76 616 . . 929 945 909 1942 483 . . 409 3551 575 274 20 3405 519 2450 3586 482 . 2096 389 530 394 907 6080 2486 Core 2615 | . 48 112 36 32 40 82 36 . 54 . . 84 218 69 142 32 . . 31 249 38 14 . 189 45 65 165 74 . 226 45 . 30 13 194 252 Absorbed by Shields 3727 | . . . . . . . . . 46 . . . 22 . . 24 . . 91 292 158 87 . 27 . 174 . . . . . . 406 719 1681 . Reduced by Siege Mode 2938 | . . . . . . . . . . . . 79 29 53 89 9 . . 47 328 36 19 . 228 2 52 280 44 . 180 12 114 26 158 1120 33 Redirected to Shielding 2 | . . . . . . . . . . . . . . . . . . . . . 2 . . . . . . . . . . . . . . . Ignored by Resistances 6402 | . . . . . . . . . . . . . . . . . . . . 48 32 . . 2206 107 239 570 357 . . 171 36 . 213 613 1810 Regen/Repaired (Parts) 3444 | . 123 . 103 . 322 . . . . . . 42 . . . . . . . 558 . . . . . . 1643 . . . . . 159 . 494 . Core Remaining (%) 67 | 100 . 36 . 83 . . . . 61 . . . . . . . . . 17 . . . . 42 . . . . . 42 . 96 . 96 86 84 Volleys Fired 1583 | . 32 22 36 13 88 40 32 13 49 4 63 55 77 33 107 23 . . 23 85 46 9 14 106 15 72 125 39 . 74 21 43 33 61 95 35 Largest 5 | . 2 2 2 2 3 3 3 3 3 3 3 3 3 3 3 3 . . 3 4 4 4 4 4 4 4 4 4 . 4 4 4 4 4 5 5 Hottest 171 | . 60 60 60 60 69 69 84 84 109 69 69 109 138 84 125 136 . . 84 120 118 128 140 140 127 164 164 164 . 161 122 134 136 136 171 159 Shots Fired 4450 | . 62 41 69 21 248 96 76 30 109 12 150 154 155 95 177 48 . . 57 286 159 36 56 382 36 252 365 127 1 149 58 103 106 184 449 101 Gun 4023 | . 2 . . . 240 90 66 30 91 12 144 149 137 95 151 42 . . 57 274 154 36 56 381 33 245 338 122 1 118 51 90 101 176 443 98 Cannon 241 | . 58 39 66 16 . . 6 . 15 . . 5 11 . 20 . . . . . 2 . . . . 3 . . . . . . . . . . Launcher 123 | . 2 2 3 5 8 6 4 . 3 . . . 7 . 6 6 . . . 3 3 . . 1 3 4 13 5 . 19 1 11 . 6 . 2 Special 63 | . . . . . . . . . . . 6 . . . . . . . . 9 . . . . . . 14 . . 12 6 2 5 2 6 1 Kinetic 4037 | . 59 39 66 16 240 90 66 30 91 12 144 149 137 95 108 26 . . 57 274 154 36 56 381 33 208 307 116 1 87 51 90 101 176 443 98 Thermal 165 | . 1 . . . . . . . . . . . . . 43 16 . . . . . . . . . 37 31 6 . 31 . . . . . . Explosive 88 | . 2 2 3 5 8 6 4 . 3 . . . 7 . 6 . . . . 3 3 . . 1 3 4 4 5 . 12 1 . . 6 . . Electromagnetic 97 | . . . . . . . 6 . 15 . . 5 11 . 20 6 . . . . 2 . . . . 3 9 . . 7 . 11 . . . 2 Robot Hit Streak 66 | . 7 10 12 5 21 20 18 11 26 6 29 33 39 19 32 23 . . 12 30 8 16 19 43 14 42 47 27 . 44 22 23 37 27 66 15 Robot Miss Streak 9 | . 3 2 3 2 3 3 3 2 3 2 2 5 3 8 9 7 . . 4 4 8 4 4 4 2 3 2 2 . 2 1 1 3 2 3 3 Penetration Max 2 | . . . . . . . . . . . . . . . 1 . . . . 1 1 1 1 1 . 1 1 . . 1 1 1 1 1 2 . Secondary Targets 99 | . . . . . 2 3 1 . 4 . . 1 1 . 4 . . . . 11 . . . 6 1 9 20 1 . 1 1 . 4 4 21 4 Max Gunslinging Chain 3 | . . . . . 1 1 1 . 1 . . 1 1 . 1 . . . . 3 . . . 1 1 1 2 1 . 1 1 . 1 1 2 1 Shots Hit Robots 3205 | . 35 24 48 10 163 67 49 19 70 5 132 125 123 76 152 31 . . 48 212 106 25 27 248 24 186 267 79 . 90 51 69 80 124 360 80 Core Hits 1933 | . 20 9 20 10 88 39 32 10 39 3 23 57 105 95 207 56 . . 27 105 90 17 19 110 14 95 152 46 . 61 29 46 43 72 154 40 Critical Kills 46 | . . . . . . . . 1 . . . . 2 . . . . . . 2 . . 4 15 1 3 3 2 . . . 1 1 3 7 1 Critical Parts Destroyed 73 | . . . . . 1 . 1 . 1 . . 1 . . 1 . . . . . 1 . 4 21 . 4 5 2 . 2 . 4 2 2 8 13 Critical Strikes 131 | . . . 4 2 1 . 1 1 1 . 1 1 2 . 1 . . . . 2 1 . 8 36 1 10 8 4 . 2 . 5 3 5 17 14 Destroy 109 | . . . . . 1 . 1 . 1 . 1 . 1 . . . . . . 2 1 . 8 36 1 10 8 4 . 2 . 5 3 5 17 2 Blast 6 | . . . 4 2 . . . . . . . . . . . . . . . . . . . . . . . . . . . . . . . . Smash 16 | . . . . . . . . 1 . . . 1 1 . 1 . . . . . . . . . . . . . . . . . . . . 12 Melee Attacks 129 | . 2 5 . . . 6 . 4 8 . . 19 8 . 13 . . . 3 5 . . . 1 . 17 1 1 . . 1 . 1 . . 34 Impact 124 | . 2 . . . . 6 . 4 8 . . 19 8 . 13 . . . 3 5 . . . 1 . 17 1 1 . . 1 . 1 . . 34 Slashing . | . . . . . . . . . . . . . . . . . . . . . . . . . . . . . . . . . . . . . Piercing . | . . . . . . . . . . . . . . . . . . . . . . . . . . . . . . . . . . . . . Sneak Attacks 13 | . . . . . . . . 2 . . . 2 . . 2 . . . . . . . . . . . . . . . . . . . . 7 Combat Hostiles 1 | . . . . . . . . . . . . . . . . . . . . . . . . . . . . . . . . . . . . 1 Follow-up Attacks . | . . . . . . . . . . . . . . . . . . . . . . . . . . . . . . . . . . . . . Damage Inflicted 90791 | . 779 549 1108 472 3793 1959 1637 475 1571 79 2001 2438 3262 1340 4640 1276 . . 913 5305 2595 588 907 6462 884 5486 8204 2849 . 3679 1308 2385 1898 4324 11956 3669 Guns 69498 | . . . . . 2596 1006 855 279 1033 79 2001 2054 1943 1340 2909 688 . . 913 4813 2354 588 907 6140 493 4740 7043 2008 . 1614 1069 1434 1898 3181 11920 1600 Cannons 3101 | . 617 409 866 192 . . 164 . 105 . . 78 246 . 393 . . . . . 31 . . . . . . . . . . . . . . . Explosions 15628 | . 162 140 242 280 1197 953 618 . 433 . . 80 991 . 1141 588 . . . 393 210 . . 322 391 717 1161 841 . 2065 231 951 . 1143 . 378 Melee 2491 | . . . . . . . . 196 . . . 226 82 . 197 . . . . 99 . . . . . . . . . . . . . . . 1691 Ramming 73 | . . . . . . . . . . . . . . . . . . . . . . . . . . 29 . . . . 8 . . . 36 . Kinetic 68293 | . 617 409 866 192 2596 1006 855 279 1033 79 2001 2054 1943 1340 1606 316 . . 913 4813 2354 588 907 6140 493 3952 6695 1836 . 1308 1069 1434 1898 3181 11920 1600 Thermal 4039 | . . . . . . . . . 46 . . 80 . . 1303 496 . . . . . . . . . 788 527 172 . 397 . 158 . . . 72 Explosive 12501 | . 162 140 242 280 1197 953 618 . 387 . . . 991 . 1141 . . . . 393 210 . . 322 391 717 450 841 . 1692 231 . . 1143 . . Electromagnetic 3394 | . . . . . . . 164 . 105 . . 78 246 . 393 464 . . . . 31 . . . . . 532 . . 282 . 793 . . . 306 Impact 2491 | . . . . . . . . 196 . . . 226 82 . 197 . . . . 99 . . . . . . . . . . . . . . . 1691 Slashing . | . . . . . . . . . . . . . . . . . . . . . . . . . . . . . . . . . . . . . Piercing . | . . . . . . . . . . . . . . . . . . . . . . . . . . . . . . . . . . . . . Highest Corruption 38 | . . 5 . . . . . 5 5 . 19 21 18 20 32 33 33 33 33 8 11 13 13 16 11 8 11 11 11 25 . . 3 3 38 22 Average Corruption 13 | . . 5 . . . . . 4 5 . 17 19 18 19 29 32 33 33 33 6 8 12 10 12 5 7 9 11 11 17 . . 2 3 4 17 Corruption Purged 34 | . . . . . . . . . . . . 5 . . . . . . . . . . 13 . 10 . . . . . . . . . . 6 Corruption Blocked . | . . . . . . . . . . . . . . . . . . . . . . . . . . . . . . . . . . . . . Effects 1302 | . . 20 . . . . . 23 63 . 34 100 75 75 131 72 7 12 53 29 69 23 10 69 13 65 105 50 4 84 . . 19 34 40 23 Message Errors 302 | . . 9 . . . . . 4 14 . 8 21 10 20 31 13 1 4 18 7 19 5 1 11 2 12 30 8 . 21 . . 4 11 9 9 Matter Fused 277 | . . 4 . . . . . 4 10 . 5 18 18 19 28 13 5 2 8 4 16 2 4 13 7 15 19 16 . 18 . . 3 10 14 2 Heat Flow Errors 160 | . . 2 . . . . . 4 5 . 2 10 9 10 17 16 . 1 5 4 8 3 1 10 2 13 12 6 . 10 . . 3 3 2 2 Energy Discharges 135 | . . 1 . . . . . 3 8 . 2 12 10 6 12 5 1 3 8 2 10 4 1 6 1 4 14 5 1 6 . . 2 3 3 2 Parts Rejected 14 | . . . . . . . . 1 1 . 3 . . . . . . . . 1 . 2 . 2 . . 2 . . 2 . . . . . . Parts Fused 14 | . . . . . . . . 1 . . . 1 2 1 . . . . 1 1 2 . . 1 . . 1 1 . . . . . 1 . 1 Data Loss (minor) 146 | . . 2 . . . . . 4 10 . 5 12 10 6 21 4 . 1 6 3 8 3 . 11 . 7 12 4 1 5 . . 5 1 3 2 Data Loss (major) 64 | . . 1 . . . . . . 5 . 1 11 1 1 3 4 . 1 2 3 3 1 1 3 1 5 4 2 . 5 . . 1 1 3 1 Misfires 55 | . . . . . . . . . 4 . 1 3 2 2 6 6 . . 1 1 . . 1 1 . 5 4 2 1 10 . . . 3 2 . Alerts 40 | . . . . . . . . 2 4 . 1 4 2 4 2 5 . . . 1 . 2 . 2 . 1 2 . 1 2 . . 1 . 2 2 Misdirections 18 | . . . . . . . . . . . . 1 . . 3 2 . . 1 . . 1 . . . . 2 2 . 4 . . . . . 2 Weapon Failures 77 | . . 1 . . . . . . 2 . 6 7 11 6 8 4 . . 3 2 3 . 1 9 . 3 3 4 . 1 . . . 1 2 . Overload Shots . | . . . . . . . . . . . . . . . . . . . . . . . . . . . . . . . . . . . . . Overflow Damage 2238 | . 37 55 21 . 22 78 28 64 5 . . 87 24 . 123 . . . . 87 36 . . . 101 32 8 37 . 84 . 23 . 38 6 1242 Projectiles 46 | . 10 25 . . . . 11 . . . . . . . . . . . . . . . . . . . . . . . . . . . . . Explosions 660 | . 27 30 21 . 22 78 17 . 5 . . . 24 . 1 . . . . 76 36 . . . 101 32 8 37 . 84 . 23 . 38 . . Melee 1532 | . . . . . . . . 64 . . . 87 . . 122 . . . . 11 . . . . . . . . . . . . . . 6 1242 Knockbacks 30 | . 11 7 4 2 . . . . . . . 1 . . . . . . . 1 . . . . . . . . . . . . . . . 4 Impact 6 | . . . . . . . . . . . . 1 . . . . . . . 1 . . . . . . . . . . . . . . . 4 Kinetic 24 | . 11 7 4 2 . . . . . . . . . . . . . . . . . . . . . . . . . . . . . . . . Secondary . | . . . . . . . . . . . . . . . . . . . . . . . . . . . . . . . . . . . . . Self-Inflicted Damage 1108 | . . . 63 4 78 18 129 . . . . . 148 17 . 164 . . . . . . . 62 . 58 . 47 . 134 . . . 136 . 50 Shots 35 | . . . 2 1 2 1 3 . . . . . 4 1 . 3 . . . . . . . 1 . 1 . 1 . 3 . . . 3 . 9 Rammed 3 | . . . . . . . . . . . . . . . . . . . . . . . . . . 1 . . . . 1 . . . 1 . Targets Rammed 3 | . . . . . . . . . . . . . . . . . . . . . . . . . . 1 . . . . 1 . . . 1 . Kicked . | . . . . . . . . . . . . . . . . . . . . . . . . . . . . . . . . . . . . . Crushed . | . . . . . . . . . . . . . . . . . . . . . . . . . . . . . . . . . . . . . Highest Temperature 366 | . 93 178 15 12 8 34 15 187 260 . 203 181 228 342 256 277 . 366 228 234 227 177 225 268 235 336 292 232 . 317 102 1 234 242 158 180 Average Temperature 72 | . 37 57 9 9 4 10 9 78 119 . 71 72 100 89 78 95 . 158 96 62 88 49 48 64 73 82 83 80 . 87 32 1 72 105 18 63 Received Heat Transfer 6601 | . 171 99 99 90 342 324 153 36 174 . . 183 84 219 522 93 . . 195 406 115 13 . 543 27 534 816 18 . 345 9 54 4 84 714 135 Effects 7 | . . . . . . . . . 1 . . . . . 1 2 . . . . . . . . . . . 2 . . . . . 1 . . Energy Bleed 3 | . . . . . . . . . . . . . . . 1 2 . . . . . . . . . . . . . . . . . . . . Interference 4 | . . . . . . . . . 1 . . . . . . . . . . . . . . . . . . 2 . . . . . 1 . . Siege Activations 157 | . . . . . . . . . . . . 9 12 7 8 6 . . 2 7 7 2 2 16 2 8 17 9 . 8 3 7 5 4 15 1 Total Turns 4564 | . . . . . . . . . . . . 114 134 60 114 62 . . 38 153 109 33 18 330 9 121 231 86 . 170 34 142 49 152 2392 13 Longest Duration 815 | . . . . . . . . . . . . 25 41 16 29 21 . . 35 63 27 19 16 126 6 28 52 15 . 70 21 72 21 63 815 13 Martial Activations . | . . . . . . . . . . . . . . . . . . . . . . . . . . . . . . . . . . . . . Shielding Activations . | . . . . . . . . . . . . . . . . . . . . . . . . . . . . . . . . . . . . . Robots Disrupted . | . . . . . . . . . . . . . . . . . . . . . . . . . . . . . . . . . . . . . Combat Hostiles . | . . . . . . . . . . . . . . . . . . . . . . . . . . . . . . . . . . . . . Robots Corrupted 19 | . . . . . . . 1 1 . . . 1 1 . 1 1 . . . 1 . . . . . . 1 . . . . 4 . . . 7 Combat Hostiles 9 | . . . . . . . . . . . . . 1 . . 1 . . . . . . . . . . 1 . . . . 4 . . . 2 Parts Fried 48 | . . . . . . . 2 1 . . . 2 2 . 2 4 . . . 2 . . . . . . 8 . . 3 . 7 . . . 15 Impact Corruptions 37 | . . . . . . . . 1 . . . 3 . . 2 . . . . 1 . . . . . . . . . . . . . . 1 29 Robots Melted . | . . . . . . . . . . . . . . . . . . . . . . . . . . . . . . . . . . . . . Combat Hostiles . | . . . . . . . . . . . . . . . . . . . . . . . . . . . . . . . . . . . . . Parts Melted 6 | . . . . . . . . . . . . . . . 3 . . . . 1 . . . . . 1 . . . . . . 1 . . . Heat Transferred 6524 | . . . . . . . . . 50 . . 100 . . 2950 1000 . . . . . . . . . 962 570 185 . 507 . 100 . . . 100 Parts Sabotaged . | . . . . . . . . . . . . . . . . . . . . . . . . . . . . . . . . . . . . . Parts Stolen . | . . . . . . . . . . . . . . . . . . . . . . . . . . . . . . . . . . . . . Parts Stripped . | . . . . . . . . . . . . . . . . . . . . . . . . . . . . . . . . . . . . . Power Chain Reactions 17 | . . . . . . . . . 1 . . 1 . . . 3 . . . . . . . . . . 4 . . 6 . 1 . . . 1 Alert | -11 -10 -10 -9 -9 -8 -8 -8 -8 -8 -7 -7 -7 -7 -7 -7 -7 -7 -7 -6 -6 -6 -6 -6 -6 -5 -5 -5 -5 -5 -5 -4 -4 -3 -3 -2 -1 ------- Run | Yrd Mat Min Mat Min Mat Gar Mat Sto Gar Fac Was Fac Gar Fac Gar Fac Low Zio Pro Fac Ext Cet Arc Hub Fac Gar Fac Gar Fac Gar Fac Gar Res Gar Res Acc Maximum Alert Level 5 | . . . . . 2 5 3 2 5 3 1 . 3 2 5 3 . . . 3 4 2 2 4 3 5 5 5 4 5 3 4 3 5 5 4 Low Security (%) 21 | 100 100 100 100 100 84 . . . . . 74 100 4 . 3 . . . . 69 . . . 12 . . . . . . . . . . . . Level 1 7 | . . . . . . . . 86 4 . 25 . 36 91 5 . . . . . 4 . 47 15 . 5 . . . . . . . . . . Level 2 17 | . . . . . 15 30 . 13 16 . . . 26 8 16 35 . . . 14 71 100 52 2 76 10 . . . . . 6 81 19 . . Level 3 27 | . . . . . . 29 100 . 43 100 . . 31 . 43 64 . . . 16 20 . . 38 23 50 55 . . 17 100 33 18 28 17 76 Level 4 19 | . . . . . . 21 . . 28 . . . . . 30 . . . . . 4 . . 31 . 30 41 27 100 45 . 59 . 16 66 23 Level 5 7 | . . . . . . 17 . . 7 . . . . . . . . . . . . . . . . 3 3 72 . 37 . . . 36 16 . High Security . | . . . . . . . . . . . . . . . . . . . . . . . . . . . . . . . . . . . . . Max Security . | . . . . . . . . . . . . . . . . . . . . . . . . . . . . . . . . . . . . . Peak Influence 2169 | . 108 126 142 163 626 2051 1031 629 1808 949 277 162 854 448 1612 846 . . . 1026 1219 696 451 1404 797 1739 1694 2169 1138 1823 1025 1354 775 1770 1784 1269 Initial 1183 | . . 9 . 7 . 406 999 409 202 949 277 . 66 448 180 846 . . . . 499 677 250 116 681 330 912 1183 1138 775 956 695 761 409 995 968 Average 754 | . 29 31 71 28 111 1072 967 356 1006 871 129 71 468 306 905 722 . . . 243 598 636 390 810 601 1010 1088 1776 1124 1422 917 1080 612 1219 1297 1040 Influence Increases 27701 | . 371 165 414 213 1124 1685 455 606 1786 13 . 464 788 366 1582 422 . . 70 1481 1496 309 301 2308 357 1449 1666 986 . 1308 379 709 453 1411 1759 805 Destroy 0b10 Robot/C 13520 | . 200 120 240 140 740 400 280 240 720 . . 240 420 180 680 200 . . 60 740 740 160 80 960 220 680 960 540 . 640 220 380 260 740 1100 240 Destroy 0b10 Robot/NC 975 | . 30 5 30 5 65 10 20 30 . 10 . 45 35 40 45 45 . . . 100 25 10 35 80 . 30 90 . . . 5 10 25 5 55 90 Destroy Leader 2194 | . 56 30 64 20 164 40 64 68 40 2 . 104 30 82 50 64 . . 10 160 66 . . 228 30 40 190 50 . 60 62 50 66 50 182 72 Allied During Kill 2164 | . . . . . . . . 195 150 . . . . . 62 10 . . . 11 492 122 115 513 3 . . 10 . 13 2 26 . 86 350 4 Successful Hack 772 | . 42 . 24 . 21 14 12 12 14 . . 40 14 34 24 . . . . 65 13 . . 30 41 14 120 . . 14 26 14 68 44 . 72 Select Force Hacks 100 | . . . . . . . . . . . . . . . . . . . . . . . . 100 . . . . . . . . . . . . Disable Machine 1260 | . 15 . . 15 30 . 45 60 15 . . 15 . 30 . 45 . . . 300 60 . 60 240 . 75 90 15 . . . 60 30 45 15 . Anti-Garrison Action 4100 | . . . . . . 1150 . . 700 . . . 200 . 600 . . . . . . . . . . 500 . 250 . 400 . 100 . 200 . . Destroy Structure 1821 | . 13 10 26 33 74 71 34 1 87 1 . 20 89 . 76 43 . . . 90 40 17 11 127 48 95 186 121 . 166 34 54 4 196 27 27 Partial Spotted 75 | . 15 . . . 15 . . . . . . . . . . . . . . . . . . . 15 . . . . . . . . . 15 15 Lose Combat Pursuer 720 | . . . 30 . 15 . . . 60 . . . . . 45 15 . . . 15 60 . . 30 . 15 30 . . 15 30 15 . 45 15 285 Influence Decreases 26432 | . 347 189 395 232 498 260 1536 1265 289 1029 792 369 29 962 228 1312 318 404 70 461 1306 893 592 1252 1276 182 1715 507 1061 593 1209 348 1261 187 1915 1150 Entered New Map 13809 | . . 15 . 12 . 220 1052 561 109 859 515 . 29 406 78 766 268 404 . . 521 533 376 219 710 142 827 507 1031 333 867 298 593 137 775 646 Time Decay 9765 | . 347 174 395 220 400 . 474 404 . 170 277 359 . 556 . 486 50 . 70 381 595 230 206 693 506 . 678 . 30 . 302 . 658 . 770 334 Lost Part 880 | . . . . . 10 40 10 . . . . 10 . . 90 . . . . 60 10 10 10 90 . 40 30 . . 80 . 10 . 10 220 150 Lost Ally 1290 | . . . . . . . . . 180 . . . . . 60 60 . . . 20 180 120 . 100 60 . 30 . . 180 40 40 10 40 150 20 Purge Threat 688 | . . . . . 88 . . 300 . . . . . . . . . . . . . . . 150 . . 150 . . . . . . . . . Squads Dispatched 108 | . 1 . . 1 7 . 4 2 . . . 4 . 3 . 4 . . . 10 3 . . 17 3 . 12 . . . 6 . 7 . 17 7 Investigation 8 | . . . . 1 . . 1 . . . . . . . . . . . . . . . . 4 . . . . . . . . 2 . . . Extermination 32 | . . . . . . . . . . . . 3 . 3 . 2 . . . 4 . . . 4 1 . 5 . . . 1 . . . 8 1 Reinforcement 27 | . 1 . . . 2 . 1 1 . . . 1 . . . 1 . . . 1 1 . . 6 . . 2 . . . . . 5 . 1 4 Assault 30 | . . . . . . . 2 . . . . . . . . 1 . . . 4 2 . . 3 2 . 5 . . . 2 . . . 7 2 Garrison 11 | . . . . . 5 . . 1 . . . . . . . . . . . 1 . . . . . . . . . . 3 . . . 1 . Intercept . | . . . . . . . . . . . . . . . . . . . . . . . . . . . . . . . . . . . . . Searches Triggered . | . . . . . . . . . . . . . . . . . . . . . . . . . . . . . . . . . . . . . Unchained Authorized 2 | . . . . . . . . . . . . . . . . . . . . . . . . . . . . . . . 1 . . . 1 . Construction Impeded 4 | . . . . . . . . . . . . 1 . . . . . . . . . . . 1 . . 1 . . . . . . . . 1 Haulers Reinforced 3 | . . . . . . . . . . . . . . . . . . . . . . . . 1 . . . . . . . . 2 . . . Active Scanning Responses . | . . . . . . . . . . . . . . . . . . . . . . . . . . . . . . . . . . . . . Cargo Convoy Interrupts 1 | . . . . . . . . . . . . . . . . . . . . 1 . . . . . . . . . . . . . . . . Alert ID Control Effect 7 | . . . . . . . . . . . . . . . . . . . . . . . . . . . . . . 3 . . . . . 4 Stealth | -11 -10 -10 -9 -9 -8 -8 -8 -8 -8 -7 -7 -7 -7 -7 -7 -7 -7 -7 -6 -6 -6 -6 -6 -6 -5 -5 -5 -5 -5 -5 -4 -4 -3 -3 -2 -1 --------- Run | Yrd Mat Min Mat Min Mat Gar Mat Sto Gar Fac Was Fac Gar Fac Gar Fac Low Zio Pro Fac Ext Cet Arc Hub Fac Gar Fac Gar Fac Gar Fac Gar Res Gar Res Acc Distress Signals 30 | . 2 1 . . 3 1 . 3 . . . . . . . . . . . 1 3 2 . 1 1 . 1 . . . . . 10 . . 1 Communications Jammed 256 | . . . . . . . . . . . . 5 . 4 . 5 . . . 24 . . . . . . 169 . . . 9 . . 3 37 . Distress Signals 251 | . . . . . . . . . . . . 5 . . . 5 . . . 23 . . . . . . 169 . . . 9 . . 3 37 . Times Spotted 883 | . 19 6 13 8 51 26 18 11 33 1 6 19 18 16 32 20 . . 3 53 45 10 7 60 16 35 68 23 . 39 26 19 24 38 74 46 Peak Tracking Total 24 | . 4 1 4 3 9 4 5 2 4 1 4 3 4 2 8 5 . . 3 7 10 5 1 10 5 8 6 5 . 6 4 6 4 10 24 8 Tactical Retreats 30 | . . . 2 . 1 . . . 2 . . . . . 1 1 . . . 1 3 . . 2 . 1 2 . . 1 1 1 . 1 2 8 Traps | -11 -10 -10 -9 -9 -8 -8 -8 -8 -8 -7 -7 -7 -7 -7 -7 -7 -7 -7 -6 -6 -6 -6 -6 -6 -5 -5 -5 -5 -5 -5 -4 -4 -3 -3 -2 -1 ------- Run | Yrd Mat Min Mat Min Mat Gar Mat Sto Gar Fac Was Fac Gar Fac Gar Fac Low Zio Pro Fac Ext Cet Arc Hub Fac Gar Fac Gar Fac Gar Fac Gar Res Gar Res Acc Traps Triggered 55 | . 1 . . . . 11 . 3 11 1 . 2 . . 2 4 . . . 2 1 . . . . 7 2 1 . 3 1 2 . . 1 . Indirectly 3 | . . . . . . . . . . . . . . . . 3 . . . . . . . . . . . . . . . . . . . . Trap Hack Attempts . | . . . . . . . . . . . . . . . . . . . . . . . . . . . . . . . . . . . . . Triggered . | . . . . . . . . . . . . . . . . . . . . . . . . . . . . . . . . . . . . . Disarmed . | . . . . . . . . . . . . . . . . . . . . . . . . . . . . . . . . . . . . . Reprogrammed . | . . . . . . . . . . . . . . . . . . . . . . . . . . . . . . . . . . . . . Reused . | . . . . . . . . . . . . . . . . . . . . . . . . . . . . . . . . . . . . . Traps Extracted . | . . . . . . . . . . . . . . . . . . . . . . . . . . . . . . . . . . . . . Installed . | . . . . . . . . . . . . . . . . . . . . . . . . . . . . . . . . . . . . . Triggered . | . . . . . . . . . . . . . . . . . . . . . . . . . . . . . . . . . . . . . Machines | -11 -10 -10 -9 -9 -8 -8 -8 -8 -8 -7 -7 -7 -7 -7 -7 -7 -7 -7 -6 -6 -6 -6 -6 -6 -5 -5 -5 -5 -5 -5 -4 -4 -3 -3 -2 -1 ---------- Run | Yrd Mat Min Mat Min Mat Gar Mat Sto Gar Fac Was Fac Gar Fac Gar Fac Low Zio Pro Fac Ext Cet Arc Hub Fac Gar Fac Gar Fac Gar Fac Gar Res Gar Res Acc Machines Disabled 105 | . 1 . . 1 2 2 3 4 3 . . 1 2 2 2 3 . . . 20 4 . 4 16 . 7 6 6 . 4 . 4 2 5 1 . Max in Single Turn 3 | . 1 . . 1 1 1 1 1 1 . . 1 1 2 1 3 . . . 1 1 . 1 2 . 1 2 1 . 1 . 1 1 1 1 . Garrison Access 6 | . . . . . . . . . . . . . . . . 1 . . . 1 . . . 1 . . . . . . . . . . 1 2 Garrison Relay 19 | . . . . . . 2 . . 2 . . . 2 . 2 . . . . . . . . . . 2 . 3 . 4 . . . 2 . . Network Hub 4 | . . . . . . . . . . . . . . . . . . . . . . . . 4 . . . . . . . . . . . . Machines Repaired . | . . . . . . . . . . . . . . . . . . . . . . . . . . . . . . . . . . . . . Machines Dismantled 8 | . . . . . . . . 2 1 . . . . . . . . . . . 3 . . 2 . . . . . . . . . . . . Machines Sabotaged 2 | . . . . . . . . . . . . . . . . . . . . . . . . 2 . . . . . . . . . . . . Overloaded Fab Kills . | . . . . . . . . . . . . . . . . . . . . . . . . . . . . . . . . . . . . . Hacking | -11 -10 -10 -9 -9 -8 -8 -8 -8 -8 -7 -7 -7 -7 -7 -7 -7 -7 -7 -6 -6 -6 -6 -6 -6 -5 -5 -5 -5 -5 -5 -4 -4 -3 -3 -2 -1 --------- Run | Yrd Mat Min Mat Min Mat Gar Mat Sto Gar Fac Was Fac Gar Fac Gar Fac Low Zio Pro Fac Ext Cet Arc Hub Fac Gar Fac Gar Fac Gar Fac Gar Res Gar Res Acc Machines Accessed 146 | . 8 . 7 1 7 3 4 8 3 2 . 10 4 11 2 2 . . . 12 9 . . 11 6 1 10 . 1 2 3 1 6 3 3 6 Terminals 99 | . 7 . 5 . 4 3 3 7 3 1 . 6 4 7 2 1 . . . 6 9 . . 11 2 1 4 . . 2 1 1 1 3 1 4 Fabricators 6 | . . . . . . . . . . . . 1 . 2 . . . . . . . . . . 3 . . . . . . . . . . . Repair Stations 11 | . 1 . 1 . 2 . . . . . . 1 . 1 . . . . . 2 . . . . . . 1 . . . 1 . 1 . . . Recycling Units 11 | . . . . . . . 1 . . . . . . . . . . . . 3 . . . . . . 3 . . . . . 3 . 1 . Scanalyzers 5 | . . . 1 . . . . . . 1 . 1 . . . . . . . 1 . . . . . . 1 . . . . . . . . . Garrison Access 13 | . . . . . 1 . . 1 . . . 1 . 1 . 1 . . . . . . . . 1 . 1 . 1 . 1 . 1 . 1 2 Total Hacks 388 | . 29 . 25 1 27 5 9 19 9 5 . 23 8 26 2 6 . . . 27 14 . . 25 19 2 45 . 1 7 8 1 19 4 7 15 Successful 174 | . 18 . 13 1 19 1 5 8 2 . . 9 2 10 2 1 . . . 14 5 . . 14 8 1 17 . 1 1 4 1 7 3 1 6 Failed 211 | . 11 . 11 . 8 4 4 11 7 5 . 13 6 16 . 5 . . . 13 9 . . 11 11 1 27 . . 6 4 . 12 1 6 9 Catastrophic 52 | . . . . . . 3 . 1 1 1 . 6 1 3 . . . . . 3 3 . . 5 6 . 4 . . 2 1 . 5 . 4 3 Database Lockouts 3 | . . . 1 . . . . . . . . 1 . . . . . . . . . . . . . . 1 . . . . . . . . . Manual 183 | . 25 . 21 . 10 . 8 8 . 3 . 11 . 14 . 5 . . . 8 4 1 . 23 14 . 12 . . . 4 . 3 . 2 7 Terminals 267 | . 25 . 22 . 13 5 8 18 9 3 . 12 8 19 2 5 . . . 12 14 . . 25 4 2 27 . . 7 3 1 5 4 2 12 Fabricators 17 | . . . . . . . . . . . . 2 . 4 . . . . . . . . . . 11 . . . . . . . . . . . Repair Stations 44 | . 4 . 2 . 12 . . . . . . 3 . 2 . . . . . 5 . . . . . . 5 . . . 4 . 7 . . . Recycling Units 20 | . . . . . . . 1 . . . . . . . . . . . . 5 . . . . . . 4 . . . . . 6 . 4 . Scanalyzers 20 | . . . 1 . . . . . . 2 . 4 . . . . . . . 5 . . . . . . 8 . . . . . . . . . Garrison Access 19 | . . . . . 2 . . 1 . . . 2 . 1 . 1 . . . . . . . . 4 . 1 . 1 . 1 . 1 . 1 3 Terminal Hacks 59 | . 5 . 2 1 4 1 2 6 2 . . 1 2 4 2 . . . . 1 4 . . 7 . 1 6 . . 1 . 1 2 3 . 1 Part Schematic 2 | . 2 . . . . . . . . . . . . . . . . . . . . . . . . . . . . . . . . . . . Robot Analysis 2 | . . . 1 . . . . 1 . . . . . . . . . . . . . . . . . . . . . . . . . . . . Open Door 10 | . . . . 1 . . . 2 . . . . . . 1 . . . . 1 4 . . . . . . . . . . . . . . 1 Branch Access Points 2 | . . . . . . . 1 . . . . . . . . . . . . . . . . . . . . . . . . . 1 . . . Emergency Access Points 8 | . . . . . . 1 . . 1 . . . 1 . 1 . . . . . . . . . . 1 . . . 1 . 1 . 1 . . Terminal Index 3 | . . . . . . . . . . . . 1 . . . . . . . . . . . 1 . . 1 . . . . . . . . . Unreport Threat 5 | . . . . . 1 . . 2 . . . . . . . . . . . . . . . 1 . . 1 . . . . . . . . . Locate Traps 15 | . 3 . 1 . 2 . 1 1 . . . . . 3 . . . . . . . . . 1 . . 2 . . . . . 1 . . . Maintenance Status 1 | . . . . . . . . . . . . . . . . . . . . . . . . 1 . . . . . . . . . . . . Zone Layout 7 | . . . . . 1 . . . . . . . . 1 . . . . . . . . . 3 . . 2 . . . . . . . . . Garrison Registry 2 | . . . . . . . . . . . . . 1 . . . . . . . . . . . . . . . . . . . . 1 . . Patrol Navigation 1 | . . . . . . . . . 1 . . . . . . . . . . . . . . . . . . . . . . . . . . . Security Stations 1 | . . . . . . . . . . . . . . . . . . . . . . . . . . . . . . . . . . 1 . . Fabricator Hacks 3 | . . . . . . . . . . . . . . 1 . . . . . . . . . . 2 . . . . . . . . . . . Network Status 3 | . . . . . . . . . . . . . . 1 . . . . . . . . . . 2 . . . . . . . . . . . Repair Station Hacks 27 | . 4 . 2 . 10 . . . . . . 2 . 1 . . . . . 4 . . . . . . 2 . . . 1 . 1 . . . Scan Component 15 | . 2 . 1 . 5 . . . . . . 1 . 1 . . . . . 2 . . . . . . 1 . . . 1 . 1 . . . Repair 12 | . 2 . 1 . 5 . . . . . . 1 . . . . . . . 2 . . . . . . 1 . . . . . . . . . Recycling Unit Hacks 7 | . . . . . . . 1 . . . . . . . . . . . . 2 . . . . . . 2 . . . . . 2 . . . Retrieve Components 7 | . . . . . . . 1 . . . . . . . . . . . . 2 . . . . . . 2 . . . . . 2 . . . Scanalyzer 6 | . . . . . . . . . . . . 1 . . . . . . . 3 . . . . . . 2 . . . . . . . . . Insert Component 3 | . . . . . . . . . . . . . . . . . . . . 3 . . . . . . . . . . . . . . . . Retrieve Study 3 | . . . . . . . . . . . . 1 . . . . . . . . . . . . . . 2 . . . . . . . . . Garrison Access Hacks 14 | . . . . . 1 . . 1 . . . 1 . 1 . 1 . . . . . . . . 1 . 1 . 1 . 1 . 1 . 1 3 Unlock Access 9 | . . . . . 1 . . 1 . . . 1 . 1 . . . . . . . . . . 1 . 1 . 1 . 1 . 1 . . . Seal Access 4 | . . . . . . . . . . . . . . . . 1 . . . . . . . . . . . . . . . . . . 1 2 Coupler Status 1 | . . . . . . . . . . . . . . . . . . . . . . . . . . . . . . . . . . . . 1 Unauthorized Hacks 58 | . 9 . 9 . 4 . 2 1 . . . 4 . 3 . . . . . 4 1 . . 7 5 . 4 . . . 2 . 1 . . 2 Terminals 49 | . 9 . 9 . 4 . 2 1 . . . 3 . 1 . . . . . 4 1 . . 7 . . 4 . . . 1 . 1 . . 2 Assimilate 2 | . 1 . . . . . . . . . . . . . . . . . . . . . . . . . 1 . . . . . . . . . Botnet 27 | . 3 . 3 . 3 . 2 1 . . . 2 . 1 . . . . . 4 1 . . 2 . . 2 . . . 1 . 1 . . 1 Operators 5 | . . . 1 . . . . . . . . 1 . . . . . . . . . . . 1 . . 1 . . . . . . . . 1 Skim 11 | . 5 . 5 . 1 . . . . . . . . . . . . . . . . . . . . . . . . . . . . . . . Sabotage 4 | . . . . . . . . . . . . . . . . . . . . . . . . 4 . . . . . . . . . . . . Fabricators 6 | . . . . . . . . . . . . . . 2 . . . . . . . . . . 4 . . . . . . . . . . . Report 1 | . . . . . . . . . . . . . . . . . . . . . . . . . 1 . . . . . . . . . . . Liberate 3 | . . . . . . . . . . . . . . 1 . . . . . . . . . . 2 . . . . . . . . . . . Haulers 2 | . . . . . . . . . . . . . . 1 . . . . . . . . . . 1 . . . . . . . . . . . Repair Stations 1 | . . . . . . . . . . . . . . . . . . . . . . . . . . . . . . . 1 . . . . . Mechanics 1 | . . . . . . . . . . . . . . . . . . . . . . . . . . . . . . . 1 . . . . . Recycling Units . | . . . . . . . . . . . . . . . . . . . . . . . . . . . . . . . . . . . . . Scanalyzers . | . . . . . . . . . . . . . . . . . . . . . . . . . . . . . . . . . . . . . Garrison Access 2 | . . . . . . . . . . . . 1 . . . . . . . . . . . . 1 . . . . . . . . . . . Reprogram 2 | . . . . . . . . . . . . 1 . . . . . . . . . . . . 1 . . . . . . . . . . . Data Cores Recovered 3 | . . . . . . . . 1 . . . . . 1 . . . . . . . . . 1 . . . . . . . . . . . . Used . | . . . . . . . . . . . . . . . . . . . . . . . . . . . . . . . . . . . . . Hacking Detections 105 | . 7 . 6 . 6 3 3 5 2 2 . 9 4 9 1 1 . . . 10 7 . . 7 4 . 5 . . 1 3 . 3 . 2 5 Full Trace Events 2 | . . . . . . 1 1 . . . . . . . . . . . . . . . . . . . . . . . . . . . . . Feedback Events . | . . . . . . . . . . . . . . . . . . . . . . . . . . . . . . . . . . . . . Feedback Blocked . | . . . . . . . . . . . . . . . . . . . . . . . . . . . . . . . . . . . . . Robot Schematics Acquired . | . . . . . . . . . . . . . . . . . . . . . . . . . . . . . . . . . . . . . Robots Built . | . . . . . . . . . . . . . . . . . . . . . . . . . . . . . . . . . . . . . Authchips . | . . . . . . . . . . . . . . . . . . . . . . . . . . . . . . . . . . . . . Time . | . . . . . . . . . . . . . . . . . . . . . . . . . . . . . . . . . . . . . Total Robot Build Rating . | . . . . . . . . . . . . . . . . . . . . . . . . . . . . . . . . . . . . . Part Schematics Acquired 2 | . 2 . . . . . . . . . . . . . . . . . . . . . . . . . . . . . . . . . . . Parts Built . | . . . . . . . . . . . . . . . . . . . . . . . . . . . . . . . . . . . . . Authchips . | . . . . . . . . . . . . . . . . . . . . . . . . . . . . . . . . . . . . . Time . | . . . . . . . . . . . . . . . . . . . . . . . . . . . . . . . . . . . . . Total Part Build Rating . | . . . . . . . . . . . . . . . . . . . . . . . . . . . . . . . . . . . . . Part Studies Acquired 3 | . . . . . . . . . . . . 1 . . . . . . . . . . . . . . 2 . . . . . . . . . Parts Repaired 12 | . 2 . 1 . 5 . . . . . . 1 . . . . . . . 2 . . . . . . 1 . . . . . . . . . Time 484 | . 52 . 32 . 167 . . . . . . 78 . . . . . . . 101 . . . . . . 54 . . . . . . . . . Parts Recycled . | . . . . . . . . . . . . . . . . . . . . . . . . . . . . . . . . . . . . . Recycled Matter . | . . . . . . . . . . . . . . . . . . . . . . . . . . . . . . . . . . . . . Retrieved Matter . | . . . . . . . . . . . . . . . . . . . . . . . . . . . . . . . . . . . . . Retrieved Components 21 | . . . . . . . 3 . . . . . . . . . . . . 3 . . . . . . 10 . . . . . 5 . . . Parts Scanalyzed 1 | . . . . . . . . . . . . . . . . . . . . 1 . . . . . . . . . . . . . . . . Part Schematics Acquired . | . . . . . . . . . . . . . . . . . . . . . . . . . . . . . . . . . . . . . Parts Damaged . | . . . . . . . . . . . . . . . . . . . . . . . . . . . . . . . . . . . . . Bothacking | -11 -10 -10 -9 -9 -8 -8 -8 -8 -8 -7 -7 -7 -7 -7 -7 -7 -7 -7 -6 -6 -6 -6 -6 -6 -5 -5 -5 -5 -5 -5 -4 -4 -3 -3 -2 -1 ------------ Run | Yrd Mat Min Mat Min Mat Gar Mat Sto Gar Fac Was Fac Gar Fac Gar Fac Low Zio Pro Fac Ext Cet Arc Hub Fac Gar Fac Gar Fac Gar Fac Gar Res Gar Res Acc Used RIF Installer 10 | . . . . . . 1 . . 1 . . . 1 . 1 . . . . . . . . . . 1 . 2 . 1 . 1 . 1 . . Coupler Efficiency 1 | . . . . . . . . . . . . . . . 1 . . . . . . . . . . . . . . . . . . . . . Hotswap 1 | . . . . . . . . . . . . . . . . . . . . . . . . . . . . . . 1 . . . . . . Code Merge 1 | . . . . . . . . . . . . . . . . . . . . . . . . . . . . 1 . . . . . . . . Command Fork 1 | . . . . . . . . . . . . . . . . . . . . . . . . . . 1 . . . . . . . . . . Signal Jammer 1 | . . . . . . . . . 1 . . . . . . . . . . . . . . . . . . . . . . . . . . . Zone Cloak 1 | . . . . . . . . . . . . . . . . . . . . . . . . . . . . . . . . 1 . . . . Watcher Feeds 1 | . . . . . . . . . . . . . . . . . . . . . . . . . . . . . . . . . . 1 . . Alert ID Control 1 | . . . . . . . . . . . . . . . . . . . . . . . . . . . . 1 . . . . . . . . Autooverride 1 | . . . . . . . . . . . . . 1 . . . . . . . . . . . . . . . . . . . . . . . Robots Hacked 44 | . . 1 . . . . . . . . 6 . . . . . . . . 4 . . . . . . 8 . . 10 4 2 4 1 3 1 Non-combat 15 | . . . . . . . . . . . . . . . . . . . . 2 . . . . . . 8 . . . 1 . 2 . 2 . Combat 29 | . . 1 . . . . . . . . 6 . . . . . . . . 2 . . . . . . . . . 10 3 2 2 1 1 1 Autooverrided 3 | . . . . . . . . . . . . . . . . . . . . 1 . . . . . . . . . 2 . . . . . . Robot Hacks Applied 43 | . . 1 . . . . . . . . 6 . . . . . . . . 4 . . . . . . 8 . . 8 5 2 4 1 3 1 parse_system 8 | . . 1 . . . . . . . . . . . . . . . . . . . . . . . . . . . 1 . 2 3 . 1 . map_walls 1 | . . . . . . . . . . . . . . . . . . . . . . . . . . . 1 . . . . . . . . . find_fabricator 1 | . . . . . . . . . . . . . . . . . . . . 1 . . . . . . . . . . . . . . . . drop_inventory 2 | . . . . . . . . . . . . . . . . . . . . 1 . . . . . . 1 . . . . . . . . . find_recycling 1 | . . . . . . . . . . . . . . . . . . . . 1 . . . . . . . . . . . . . . . . locate_traps 1 | . . . . . . . . . . . . . . . . . . . . . . . . . . . 1 . . . . . . . . . map_route 4 | . . . . . . . . . . . . . . . . . . . . . . . . . . . 3 . . . 1 . . . . . ignore_targets 6 | . . . . . . . . . . . 6 . . . . . . . . . . . . . . . . . . . . . . . . . overload_power 1 | . . . . . . . . . . . . . . . . . . . . . . . . . . . . . . . 1 . . . . . amplify_resonance 1 | . . . . . . . . . . . . . . . . . . . . . . . . . . . . . . 1 . . . . . . go_dormant 1 | . . . . . . . . . . . . . . . . . . . . . . . . . . . . . . . 1 . . . . . overwrite_iff 1 | . . . . . . . . . . . . . . . . . . . . . . . . . . . . . . 1 . . . . . . formatsys_low 5 | . . . . . . . . . . . . . . . . . . . . . . . . . . . 2 . . . . . 1 . 2 . formatsys_high 10 | . . . . . . . . . . . . . . . . . . . . 1 . . . . . . . . . 5 2 . . 1 . 1 Relay Couplers Released 103 | . . . . . . 11 . . 10 . . 4 8 . 9 . . . . 2 . . . 2 4 7 . 11 . 18 . 3 . 11 . 3 Machine Destruction 82 | . . . . . . 8 . . 10 . . . 8 . 9 . . . . 2 . . . 2 . 7 . 11 . 15 . . . 7 . 3 Programmers 21 | . . . . . . 3 . . . . . 4 . . . . . . . . . . . . 4 . . . . 3 . 3 . 4 . . Attached 22 | . . . . . . . . . . . 1 2 1 . 1 . . . . 3 . . . . 1 . 2 2 . 6 1 . . 1 . 1 Merged Code Value 73 | . . . . . . . . . . . . . . . . . . . . . . . . . . . . 31 . 20 . . . 22 . . Fabnet Peak Effective % . | . . . . . . . . . . . . . . . . . . . . . . . . . . . . . . . . . . . . . Robots Rewired 41 | . . . . . . . . . 3 . . . . . 8 . . . . . 12 . . . . . . 3 . . . . . 15 . . Allies Hacked 2 | . . . . . . . . . . . . . . . . . . . . . . . . . . . . . . . . . . . 2 . Hacks Repelled . | . . . . . . . . . . . . . . . . . . . . . . . . . . . . . . . . . . . . . Allies | -11 -10 -10 -9 -9 -8 -8 -8 -8 -8 -7 -7 -7 -7 -7 -7 -7 -7 -7 -6 -6 -6 -6 -6 -6 -5 -5 -5 -5 -5 -5 -4 -4 -3 -3 -2 -1 -------- Run | Yrd Mat Min Mat Min Mat Gar Mat Sto Gar Fac Was Fac Gar Fac Gar Fac Low Zio Pro Fac Ext Cet Arc Hub Fac Gar Fac Gar Fac Gar Fac Gar Res Gar Res Acc Total Allies 98 | . 1 1 . . . . . 10 5 . . . . . 8 . . . . 2 21 5 . . 4 . 3 3 . 8 2 2 1 18 3 1 Largest Group 16 | . 1 1 1 . . . . 10 9 . . . . . 7 5 . . . 1 16 9 6 5 4 . 1 3 3 3 1 2 1 14 14 1 Highest-Rated Group 880 | . 10 31 31 . . . . 173 181 . . . . . 186 145 . . . 85 614 595 506 475 180 . 26 87 87 90 47 175 36 880 880 183 Highest-Rated Ally 183 | . 10 31 31 . . . . 29 31 . . . . . 39 39 . . . 85 159 152 96 96 49 . 26 29 29 85 47 95 36 116 89 183 Total Orders 62 | . . . . . . . . . 5 . . . . . 4 . . . . 10 . . 2 9 . . 10 2 . 5 2 . 1 7 5 . STAY 33 | . . . . . . . . . 3 . . . . . 2 . . . . 5 . . 1 5 . . 4 1 . 4 1 . . 4 3 . FOLLOW 24 | . . . . . . . . . 2 . . . . . 2 . . . . 5 . . 1 4 . . 3 1 . 1 1 . . 3 1 . AID 5 | . . . . . . . . . . . . . . . . . . . . . . . . . . . 3 . . . . . 1 . 1 . Ally Attacks 785 | . . . 1 . . . . 83 67 . . . . . 53 12 . . . 17 168 69 10 79 8 . . 4 . 42 5 19 . 38 98 12 Total Damage 20110 | . . . 21 . . . . 998 992 . . . . . 853 214 . . . 951 3529 1938 308 2620 278 . . 39 . 887 159 524 . 1829 3151 819 Kills 140 | . . . . . . . . 14 14 . . . . . 7 2 . . . 13 23 8 3 16 1 . . 1 . 5 . 2 . 9 18 4 Allies Corrupted 5 | . . . . . . . . . 1 . . . . . . . . . . . . . . . 1 . . . . . . . . 1 2 . Allies Melted 1 | . . . . . . . . . . . . . . . . . . . . . . . . . . . . . . 1 . . . . . . Intel | -11 -10 -10 -9 -9 -8 -8 -8 -8 -8 -7 -7 -7 -7 -7 -7 -7 -7 -7 -6 -6 -6 -6 -6 -6 -5 -5 -5 -5 -5 -5 -4 -4 -3 -3 -2 -1 ------- Run | Yrd Mat Min Mat Min Mat Gar Mat Sto Gar Fac Was Fac Gar Fac Gar Fac Low Zio Pro Fac Ext Cet Arc Hub Fac Gar Fac Gar Fac Gar Fac Gar Res Gar Res Acc Active Infowar (turns) 38751 | . . . . . . . . . . . . 1776 1459 1626 2114 1232 104 238 1031 2712 1890 489 427 2844 1364 2270 2679 1304 72 1961 669 1286 2473 1724 4606 401 Optics 28987 | . . . . . . . . . . . . . . . . . . . . 2528 1890 489 427 2844 1364 2270 2679 1304 72 1961 669 1286 2473 1724 4606 401 Terrain 5 | . . . . . . . . . . . . . . . . . . . . . . . . . . . 2 . . . . . . . . 3 Traps 1 | . . . . . . . . . . . . . . . . . . . . . 1 . . . . . . . . . . . . . . . Seismic 19995 | . . . . . . . . . . . . 308 . 987 1911 1030 104 238 1031 1263 1774 489 427 1675 . . 274 1194 72 1961 669 1286 2473 829 . . Decoding 1 | . . . . . . . . . . . . . . . . . . 1 . . . . . . . . . . . . . . . . . . T.N.C. 2 | . . . . . . . . . . . . . . . . . . . . . . . . . . 2 . . . . . . . . . . Jamming 8138 | . . . . . . . . . . . . 1776 1459 1626 2113 1164 . . . . . . . . . . . . . . . . . . . . ECM 3 | . . . . . . . . . . . . . . . . . . . . . . . . 1 . . . . . . 2 . . . . . Robot Analysis Total 2 | . . . 1 . . . . 1 . . . . . . . . . . . . . . . . . . . . . . . . . . . . Derelict Logs Recovered 6 | . . 3 . 1 . . . . . . . . . . . . 1 1 . . . . . . . . . . . . . . . . . . Drone Launches . | . . . . . . . . . . . . . . . . . . . . . . . . . . . . . . . . . . . . . Drone Recoveries . | . . . . . . . . . . . . . . . . . . . . . . . . . . . . . . . . . . . . . Exploration | -11 -10 -10 -9 -9 -8 -8 -8 -8 -8 -7 -7 -7 -7 -7 -7 -7 -7 -7 -6 -6 -6 -6 -6 -6 -5 -5 -5 -5 -5 -5 -4 -4 -3 -3 -2 -1 ------------- Run | Yrd Mat Min Mat Min Mat Gar Mat Sto Gar Fac Was Fac Gar Fac Gar Fac Low Zio Pro Fac Ext Cet Arc Hub Fac Gar Fac Gar Fac Gar Fac Gar Res Gar Res Acc Turns Passed 54088 | 69 1440 912 979 1110 1886 2046 1213 963 2589 347 626 2072 1478 1630 2409 1266 104 242 1073 2822 1890 489 427 2844 1364 2270 2679 1304 72 1961 669 1286 2473 1724 4606 754 Spaces Moved 22485 | 39 727 478 415 468 563 767 421 334 930 193 234 955 620 806 956 627 65 127 576 1317 829 169 144 1256 447 810 1095 620 43 917 272 590 1381 759 737 798 Core 15 | 13 . . . . . . . . . . . . . . . . . . . . . . . . . . . . . . . . . . 1 1 Treads 21508 | 26 727 478 415 468 563 767 421 334 930 193 234 955 620 806 715 627 65 127 576 1317 829 169 144 1256 447 810 1095 620 43 917 272 590 1381 759 736 76 Legs . | . . . . . . . . . . . . . . . . . . . . . . . . . . . . . . . . . . . . . Wheels 247 | . . . . . . . . . . . . . . . 241 . . . . . . . . . . . . . . . . . . . . 6 Hover 286 | . . . . . . . . . . . . . . . . . . . . . . . . . . . . . . . . . . . . 286 Flight 429 | . . . . . . . . . . . . . . . . . . . . . . . . . . . . . . . . . . . . 429 Fastest Speed 23 | 50 160 160 160 160 240 163 240 163 163 165 160 160 160 160 145 160 160 160 160 160 160 160 160 160 240 160 160 160 160 160 160 160 155 155 155 23 Average Speed 173 | 137 160 160 177 221 240 242 242 242 242 165 162 160 160 160 181 160 160 160 160 160 161 169 161 160 241 219 160 160 160 160 161 160 155 155 156 53 Slowest Speed 1450 | 160 160 160 240 240 243 243 243 243 243 165 245 160 160 160 240 160 160 160 160 160 243 240 240 240 245 246 160 160 160 160 163 163 250 155 1450 235 Overloaded Moves . | . . . . . . . . . . . . . . . . . . . . . . . . . . . . . . . . . . . . . Propulsion Burnouts . | . . . . . . . . . . . . . . . . . . . . . . . . . . . . . . . . . . . . . Robots Hopped . | . . . . . . . . . . . . . . . . . . . . . . . . . . . . . . . . . . . . . Potential Cave-ins . | . . . . . . . . . . . . . . . . . . . . . . . . . . . . . . . . . . . . . Cave-ins Triggered . | . . . . . . . . . . . . . . . . . . . . . . . . . . . . . . . . . . . . . Exploration Rate (%) 49 | 4 84 97 31 80 60 88 31 58 84 7 98 28 76 24 68 21 11 11 56 34 87 60 85 73 13 72 27 49 1 66 8 78 29 82 13 20 Regions Visited 36 Branch Regions 10 Pre-discovered Areas 6 | . . 2 3 . . . . . . . . . . . . . . 1 . . . . . . . . . . . . . . . . . . Known Exits Taken 13 | . . . 1 1 1 . 1 1 . . . 1 . 1 . . . . . . . . . . 1 . 1 . 1 . 1 . 1 . 1 . Unknown Exits Taken 12 | 1 1 1 . . . . . . . . . . . . . 1 1 1 1 1 1 1 1 1 . . . . . . . . . . . . Scrap Searched 4 | . . 1 . 1 . . . . . . . . . . . . 1 . 1 . . . . . . . . . . . . . . . . . Spaces Dug 458 | . 1 . 3 3 12 28 20 . 53 . . 16 64 . 17 . . . 3 32 42 . . 4 . 32 34 19 . 17 1 14 1 37 . 5 Terrain Destroyed 1315 | . 17 10 23 40 67 101 35 . 59 . . 18 90 . 26 40 . . 4 34 60 . 17 126 23 64 96 65 1 103 18 20 2 103 37 16 Melee 61 | . 1 . . . . . . . 7 . . 16 6 . . . . . 3 3 . . . 1 . 16 1 . . . 1 . 1 . . 5 Projectile 281 | . . . . . . . 2 . . . . . . . 2 . . . 1 2 2 . 17 108 4 13 48 7 1 13 4 4 1 9 33 10 AOE 964 | . 16 10 23 40 67 101 33 . 52 . . 2 84 . 24 40 . . . 29 58 . . 16 19 35 47 58 . 90 13 14 . 93 . . Terrain Rammed . | . . . . . . . . . . . . . . . . . . . . . . . . . . . . . . . . . . . . . Walls Destroyed . | . . . . . . . . . . . . . . . . . . . . . . . . . . . . . . . . . . . . . Machines Disabled . | . . . . . . . . . . . . . . . . . . . . . . . . . . . . . . . . . . . . . Actions | -11 -10 -10 -9 -9 -8 -8 -8 -8 -8 -7 -7 -7 -7 -7 -7 -7 -7 -7 -6 -6 -6 -6 -6 -6 -5 -5 -5 -5 -5 -5 -4 -4 -3 -3 -2 -1 --------- Run | Yrd Mat Min Mat Min Mat Gar Mat Sto Gar Fac Was Fac Gar Fac Gar Fac Low Zio Pro Fac Ext Cet Arc Hub Fac Gar Fac Gar Fac Gar Fac Gar Res Gar Res Acc Total 34213 | 52 940 579 596 523 965 891 551 427 1144 214 360 1337 945 1072 1435 850 65 168 671 1852 1229 359 310 1821 716 1110 1765 836 46 1318 461 859 1646 1182 3948 970 Wait 7637 | 3 138 70 107 19 263 30 75 24 77 10 17 259 186 167 191 152 1 13 63 280 198 140 122 313 177 116 402 106 . 221 126 166 148 176 3050 31 Move 22446 | 38 726 477 414 467 563 765 420 334 928 193 233 954 618 805 955 626 64 126 575 1316 828 168 143 1255 446 808 1094 619 42 915 272 588 1381 757 736 797 Hop . | . . . . . . . . . . . . . . . . . . . . . . . . . . . . . . . . . . . . . Pick Up 326 | 3 18 . 13 5 11 7 3 5 3 2 9 12 4 7 16 6 . 3 1 29 12 9 5 20 13 14 17 4 . 23 6 9 10 8 9 10 Fast Attach 350 | 7 4 . 2 3 4 1 4 7 5 . 9 9 12 11 8 5 . 11 . 26 8 11 10 35 19 12 22 11 2 12 6 11 22 3 1 37 Attach 128 | . . 1 2 1 3 3 1 . . 2 4 1 1 1 10 1 . 1 1 13 4 2 2 10 7 5 7 . . 11 3 1 3 3 10 14 Detach 25 | 1 . . . . . . . 1 . . . 3 . . 2 . . . . 2 . . 5 2 . 1 . . . 5 . . . . 1 2 Swap 557 | . 9 4 9 6 17 15 9 9 18 2 3 15 22 24 31 20 . . 4 48 14 2 . 30 8 22 64 25 . 29 15 17 16 17 33 . Drop 585 | . 11 . 13 9 16 12 7 14 12 1 22 10 17 24 19 15 . 14 1 48 16 18 9 43 31 28 33 15 2 27 11 22 32 11 12 10 Fire 1583 | . 32 22 36 13 88 40 32 13 49 4 63 55 77 33 107 23 . . 23 85 46 9 14 106 15 72 125 39 . 74 21 43 33 61 95 35 Melee 129 | . 2 5 . . . 6 . 4 8 . . 19 8 . 13 . . . 3 5 . . . 1 . 17 1 1 . . 1 . 1 . . 34 Ram . | . . . . . . . . . . . . . . . . . . . . . . . . . . . . . . . . . . . . . Kick . | . . . . . . . . . . . . . . . . . . . . . . . . . . . . . . . . . . . . . Crush 2 | . . . . . . . . . . . . . . . . . . . . . . . . . . 1 . . . . . . . . 1 . Escape Stasis 48 | . . . . . . 12 . . 14 . . . . . 4 . . . . . 2 . . . . 14 . . . . . 2 . . . . Rewire 341 | . . . . . . . . . 22 . . . . . 79 2 . . . . 75 . . . . . . 16 . 1 . . . 146 . . Trap . | . . . . . . . . . . . . . . . . . . . . . . . . . . . . . . . . . . . . . Miscellaneous 56 | . . . . . . . . 16 8 . . . . . . . . . . . 26 . . 6 . . . . . . . . . . . . Route ------- -11/Scrapyard -10/Materials (discovered 5 exits: *Mat x3 / [*Min] / [*Sub]) -10/Mines (discovered 4 exits: *Mat x2 / [*Exi] / [*Sub]) -9/Materials (discovered 5 exits: *Mat x3 / *Min x2) -9/Mines (discovered 3 exits: *Mat x2 / [*Zio]) -8/Materials (discovered 3 exits: *Fac / *Sto / Gar) -8/Garrison (discovered 3 exits: *Mat x3) -8/Materials (discovered 2 exits: *Sto x2) -8/Storage -8/Garrison (discovered 3 exits: *Fac x3) -7/Factory -7/Waste -7/Factory (discovered 2 exits: *Fac / Gar) -7/Garrison (discovered 3 exits: *Fac x3) -7/Factory (discovered 3 exits: [*Low x2] / Gar) -7/Garrison (discovered 4 exits: *Fac x3 / *Fac) -7/Factory -7/Lower Caves -7/Zion -6/Proximity Caves -6/Factory (discovered 4 exits: *Fac / [*Low x2] / *Ext) -6/Extension (discovered 2 exits: *Fac / *Cet) -6/Cetus (discovered 2 exits: *Fac / [*Arc]) -6/Archives (discovered 3 exits: *Fac / *Hub x2) -6/Hub_04(d) (discovered 4 exits: *Fac x4) -5/Factory (discovered 2 exits: *Fac / Gar) -5/Garrison (discovered 3 exits: *Fac x3) -5/Factory (discovered 3 exits: *Fac x2 / Gar) -5/Garrison (discovered 2 exits: *Fac / *Fac) -5/Factory -5/Garrison (discovered 2 exits: *Fac x2) -4/Factory -4/Garrison (discovered 3 exits: *Res x3) -3/Research (discovered 3 exits: *Qua x2 / Gar) -3/Garrison (discovered 3 exits: *Res x3) -2/Research -1/Access To Epsilon Eridani History --------- Turn | Location | Event 15 | -11/Scrapyard | Discovered new exit (range 15) 70 | -11/Scrapyard | Entered Materials 308 | -10/Materials | Build established: Mutant 349 | -10/Materials | Discovered new exit (range 7) 447 | -10/Materials | Discovered new exit (range 7) 547 | -10/Materials | Discovered new exit (range 16) 805 | -10/Materials | Discovered new exit (range 10) 1279 | -10/Materials | Discovered new exit (range 8) 1464 | -10/Materials | Repaired Lgt. Cannon 1491 | -10/Materials | Repaired Lgt. Treads 1510 | -10/Materials | Entered Mines 1532 | -10/Mines | Assembled infested the area 1621 | -10/Mines | Discovered new exit (range 10) 1815 | -10/Mines | Discovered new exit (range 9) 1823 | -10/Mines | Learned location of Zion (-7) 1963 | -10/Mines | Core integrity fell below 50% 2001 | -10/Mines | Discovered new exit (range 12) 2013 | -10/Mines | Learned location of Storage (-8) 2194 | -10/Mines | Received a Mining Laser from a helpful Derelict 2208 | -10/Mines | Deemed a non-threat by the Exiles lab entrance 2208 | -10/Mines | Discovered new exit (range 5) 2422 | -10/Mines | Entered Materials 2422 | -9/Materials | Accompanied by 1 ally 2422 | -9/Materials | Evolved 2 slots: Propulsion x1, Utility x1 2423 | -9/Materials | Identified exit to Mines 2878 | -9/Materials | Repaired Med. Armor Plating 3064 | -9/Materials | Discovered new exit (range 10) 3090 | -9/Materials | Learned Materials stockpile data 3115 | -9/Materials | Identified exit to Materials 3270 | -9/Materials | Central database locked down 3401 | -9/Materials | Entered Mines 3408 | -9/Mines | Received a Rocket Launcher from a helpful Derelict 3614 | -9/Mines | Discovered exit to Materials (range 5) 4002 | -9/Mines | Found a hidden stash of uninstalled traps 4105 | -9/Mines | Met a Derelict shopkeep closing up shop 4215 | -9/Mines | A Derelict revealed a hidden shortcut to a safe place 4511 | -9/Mines | Entered Materials 4511 | -8/Materials | Evolved 2 slots: Utility x1, Weapon x1 5014 | -8/Materials | Build established: Scavenger-Gunner 5575 | -8/Materials | Repaired Lgt. EM Pulse Cannon 5627 | -8/Materials | Repaired Cld. Ion Engine 5654 | -8/Materials | Repaired Lgt. Armor Plating 5682 | -8/Materials | Repaired Lgt. Treads 5821 | -8/Materials | Discovered new exit (range 7) 5840 | -8/Materials | Garrison activated, responded to threat 5887 | -8/Materials | Discovered new exit (range 14) 6034 | -8/Materials | Repaired Autogun 6135 | -8/Materials | Destroyed 12 combat bots 6272 | -8/Materials | Garrison activated, responded to threat 6397 | -8/Materials | Identified exit to Garrison 6397 | -8/Materials | Entered Garrison 6397 | -8/Garrison | Warlord forces raided the area 6486 | -8/Garrison | Build established: Gunner 6543 | -8/Garrison | Garrison Relay disabled 6605 | -8/Garrison | Triggered checkpoint 6658 | -8/Garrison | Installed Relay Interface Framework 6661 | -8/Garrison | Triggered checkpoint 6717 | -8/Garrison | Triggered checkpoint 6777 | -8/Garrison | Warlord forces retreated 7065 | -8/Garrison | Build established: Mutant 7269 | -8/Garrison | Discovered new exit (range 3) 7462 | -8/Garrison | Build established: Gunner 7477 | -8/Garrison | Garrison Relay disabled 7896 | -8/Garrison | Discovered new exit (range 10) 8177 | -8/Garrison | Triggered checkpoint 8416 | -8/Garrison | Discovered new exit (range 11) 8443 | -8/Garrison | Entered Materials 8464 | -8/Materials | Discovered new exit (range 16) 8483 | -8/Materials | Build established: Scavenger-Gunner 8894 | -8/Materials | Build established: Gunner 9184 | -8/Materials | Identified exit to Storage 9243 | -8/Materials | First assault squad dispatched 9656 | -8/Materials | Entered Storage 9925 | -8/Storage | Assisted by bots powering up and referring to "LRC-V3" 10486 | -8/Storage | Build established: Commander-Gunner 10538 | -8/Storage | Garrison activated, responded to threat 10618 | -8/Storage | Identified exit to Garrison 10619 | -8/Storage | Entered Garrison 10619 | -8/Garrison | Accompanied by 8 allies 10707 | -8/Garrison | Triggered checkpoint 10805 | -8/Garrison | Rescued a captive Derelict 10805 | -8/Garrison | Rescued a captive Derelict 10959 | -8/Garrison | Triggered checkpoint 10975 | -8/Garrison | P-60 Hacker assimilated allied FH-BUB(g) 10995 | -8/Garrison | Triggered checkpoint 11040 | -8/Garrison | Lost 7 allies 11206 | -8/Garrison | Discovered new exit (range 10) 11264 | -8/Garrison | Triggered checkpoint 11300 | -8/Garrison | Build established: Gunner 11554 | -8/Garrison | Discovered new exit (range 10) 11599 | -8/Garrison | Triggered checkpoint 11663 | -8/Garrison | Garrison Relay disabled 11978 | -8/Garrison | Discovered new exit (range 12) 12040 | -8/Garrison | Triggered checkpoint 12342 | -8/Garrison | Expanded RIF knowledge: Signal Jamming 12439 | -8/Garrison | Triggered checkpoint 12463 | -8/Garrison | Triggered checkpoint 12475 | -8/Garrison | Build established: Commander-Gunner 12515 | -8/Garrison | Garrison Relay disabled 12919 | -8/Garrison | Triggered checkpoint 13026 | -8/Garrison | Build established: Gunner 13208 | -8/Garrison | Entered Factory 13208 | -7/Factory | Evolved 2 slots: Propulsion x1, Utility x1 13510 | -7/Factory | Build established: Tank 13555 | -7/Factory | Sucked down chute 13555 | -7/Factory | Entered Waste 13570 | -7/Waste | EMP discharged 13577 | -7/Waste | Spotted C-40 Crusher 13590 | -7/Waste | Spotted C-40 Crusher 13609 | -7/Waste | Spotted C-40 Crusher 13611 | -7/Waste | Spotted C-40 Crusher 13620 | -7/Waste | Spotted C-40 Crusher 13622 | -7/Waste | Spotted C-40 Crusher 13670 | -7/Waste | EMP discharged 13670 | -7/Waste | System corruption reached 10% 13716 | -7/Waste | Destroyed C-40 Crusher 13728 | -7/Waste | Found Damper Plating 13770 | -7/Waste | EMP discharged 13831 | -7/Waste | Destroyed C-40 Crusher 13870 | -7/Waste | EMP discharged 13888 | -7/Waste | Destroyed C-40 Crusher 13959 | -7/Waste | Destroyed C-40 Crusher 13970 | -7/Waste | EMP discharged 14051 | -7/Waste | Destroyed C-40 Crusher 14070 | -7/Waste | EMP discharged 14151 | -7/Waste | Discovered new exit (range 16) 14170 | -7/Waste | EMP discharged 14181 | -7/Waste | Entered Factory 14257 | -7/Factory | Build established: Scavenger-Tank 14580 | -7/Factory | Repaired Corrupted Hvy. Treads 14740 | -7/Factory | Build established: Scavenger-Mutant 14924 | -7/Factory | Central database locked down 15324 | -7/Factory | Build established: Scavenger-Tank 15482 | -7/Factory | Discovered new exit (range 14) 15744 | -7/Factory | Build established: Scavenger-Mutant 16048 | -7/Factory | Identified exit to Garrison 16166 | -7/Factory | Build established: Scavenger-Tank 16253 | -7/Factory | Entered Garrison 16311 | -7/Garrison | Triggered checkpoint 16547 | -7/Garrison | Triggered checkpoint 16627 | -7/Garrison | Discovered new exit (range 15) 16713 | -7/Garrison | Triggered checkpoint 16967 | -7/Garrison | Triggered checkpoint 17089 | -7/Garrison | Discovered new exit (range 15) 17159 | -7/Garrison | Discovered new exit (range 44) 17159 | -7/Garrison | Discovered new exit (range 63) 17159 | -7/Garrison | Discovered new exit (range 13) 17215 | -7/Garrison | Triggered checkpoint 17260 | -7/Garrison | Garrison Relay disabled 17551 | -7/Garrison | Triggered checkpoint 17607 | -7/Garrison | Expanded RIF knowledge: Autooverride 17665 | -7/Garrison | Triggered checkpoint 17731 | -7/Garrison | Entered Factory 17752 | -7/Factory | Discovered new exit (range 11) 18067 | -7/Factory | Build established: Bothacker-Tank 18427 | -7/Factory | Build established: Scavenger-Tank 18435 | -7/Factory | Discovered new exit (range 6) 19136 | -7/Factory | Core integrity fell below 50% 19343 | -7/Factory | Identified exit to Garrison 19361 | -7/Factory | Entered Garrison 19437 | -7/Garrison | Triggered checkpoint 19530 | -7/Garrison | Triggered checkpoint 19640 | -7/Garrison | Destroyed 12 combat bots 19741 | -7/Garrison | Lost 5 parts (2n1u2w) 19859 | -7/Garrison | System corruption reached 30% 19929 | -7/Garrison | Discovered new exit (range 10) 19963 | -7/Garrison | Triggered checkpoint 20010 | -7/Garrison | Lost 3 parts (2u1w) 20247 | -7/Garrison | Triggered checkpoint 20321 | -7/Garrison | Discovered new exit (range 5) 20576 | -7/Garrison | Heavy support dispatched to Factory 20690 | -7/Garrison | Discovered new exit (range 10) 20699 | -7/Garrison | Triggered checkpoint 20824 | -7/Garrison | Expanded RIF knowledge: Coupler Efficiency 21021 | -7/Garrison | Triggered checkpoint 21087 | -7/Garrison | Triggered checkpoint 21140 | -7/Garrison | Heavy support dispatched to Factory 21151 | -7/Garrison | Triggered checkpoint 21165 | -7/Garrison | Build established: Bothacker-Mutant 21215 | -7/Garrison | Garrison Relay disabled 21361 | -7/Garrison | Heavy support dispatched to Factory 21622 | -7/Garrison | Discovered new exit (range 12) 21747 | -7/Garrison | Build established: Bothacker-Tank 21770 | -7/Garrison | Entered Factory 21770 | -7/Factory | Accompanied by 5 allies 22063 | -7/Factory | Noticed a derelict Sapper rigging charges 22926 | -7/Factory | Discovered new exit (range 5) 22970 | -7/Factory | First assault squad dispatched 23036 | -7/Factory | Entered Lower Caves 23041 | -7/Lower Caves | Learned Factory emergency access door positions 23136 | -7/Lower Caves | A Derelict revealed a hidden shortcut to a safe place 23140 | -7/Lower Caves | Entered Zion 23245 | -7/Zion | Found Prototype Device 23245 | -7/Zion | Identified Mobile Refinery Mk. CCLXVII 23295 | -7/Zion | Found Prototype Processor 23295 | -7/Zion | Identified Exp. Target Analyzer 23305 | -7/Zion | Found Prototype Processor 23305 | -7/Zion | Identified Exp. Signal Interpreter 23310 | -7/Zion | Found Prototype Processor 23310 | -7/Zion | Identified Exp. Core Analyzer 23317 | -7/Zion | Found Exp. Core Analyzer 23349 | -7/Zion | Found Prototype Processor 23366 | -7/Zion | Discovered new exit (range 11) 23382 | -7/Zion | Entered Proximity Caves 23611 | -6/Proximity Caves | Core integrity fell below 20% 24053 | -6/Proximity Caves | Discovered new exit (range 7) 24455 | -6/Proximity Caves | Entered Factory 24455 | -6/Factory | Evolved 2 slots: Utility x1, Weapon x1 24919 | -6/Factory | Identified Exp. Targeting Computer 25062 | -6/Factory | Build established: Tank 25164 | -6/Factory | Spotted B-75 Beast 25216 | -6/Factory | Assimilated Beast 5a with formatsys_high 25451 | -6/Factory | Repaired Broken Hvy. Treads 25603 | -6/Factory | Discovered new exit (range 21) 25811 | -6/Factory | Repaired Imp. Heavy Treads 26373 | -6/Factory | Discovered new exit (range 14) 26518 | -6/Factory | Watched by a mysterious "MATRIX" hacker. 26555 | -6/Factory | First assault squad dispatched 26598 | -6/Factory | Cargo convoy interrupted 26716 | -6/Factory | Destroyed 9 combat bots 26737 | -6/Factory | Found Prototype Device 26737 | -6/Factory | Identified Exp. Focal Shield 26795 | -6/Factory | Garrison activated, responded to threat 26865 | -6/Factory | Lost 4 parts (2n1u1w) 26875 | -6/Factory | Destroyed 8 combat bots 26972 | -6/Factory | Discovered new exit (range 9) 27121 | -6/Factory | Discovered new exit (range 21) 27277 | -6/Factory | Entered Extension 27857 | -6/Extension | Rescued a captive Derelict 27929 | -6/Extension | Rescued a captive Derelict 27930 | -6/Extension | Rescued a captive Derelict 28001 | -6/Extension | Rescued A7 28037 | -6/Extension | Rescued a captive Derelict 28079 | -6/Extension | Rescued a captive Derelict 28082 | -6/Extension | Rescued a captive Derelict 28199 | -6/Extension | Rescued a captive Derelict 28403 | -6/Extension | Spotted B-75 Beast 28425 | -6/Extension | Destroyed B-75 Beast 28436 | -6/Extension | Spotted B-75 Beast 28451 | -6/Extension | Allies destroyed B-75 Beast 28677 | -6/Extension | First assault squad dispatched 28728 | -6/Extension | System corruption reached 10% 28934 | -6/Extension | Rescued a captive Derelict 28973 | -6/Extension | Build established: Commander-Tank 29114 | -6/Extension | Lost 8 allies 29127 | -6/Extension | Discovered new exit (range 10) 29129 | -6/Extension | Discovered new exit (range 6) 29167 | -6/Extension | Entered Cetus 29167 | -6/Cetus | Accompanied by 8 allies (A7) 29172 | -6/Cetus | Acquired a Cetus Manufacturing Module code from A7 29184 | -6/Cetus | Spotted Cetus Guard 29186 | -6/Cetus | Spotted Cetus Guard 29189 | -6/Cetus | Spotted Cetus Guard 29192 | -6/Cetus | Spotted Cetus Guard 29196 | -6/Cetus | Allies destroyed Cetus Guard 29205 | -6/Cetus | Allies destroyed Cetus Guard 29213 | -6/Cetus | Allies destroyed Cetus Guard 29219 | -6/Cetus | Allies destroyed Cetus Guard 29225 | -6/Cetus | Extracted ID and sensor layout for unrecognized location from A7's data core 29241 | -6/Cetus | Lost 4 allies 29358 | -6/Cetus | Started Cetus Manufacturing Module 29367 | -6/Cetus | Discovered new exit (range 21) 29383 | -6/Cetus | Manufactured an Enhanced Grunt 29386 | -6/Cetus | Build established: Scavenger-Tank 29408 | -6/Cetus | Manufactured an Enhanced Grunt 29433 | -6/Cetus | Manufactured an Enhanced Grunt 29458 | -6/Cetus | Manufactured an Enhanced Grunt 29483 | -6/Cetus | Manufactured an Enhanced Grunt 29498 | -6/Cetus | Spotted Cetus Guard 29499 | -6/Cetus | Spotted Cetus Guard 29502 | -6/Cetus | Spotted Cetus Guard 29510 | -6/Cetus | Spotted Cetus Guard 29517 | -6/Cetus | Allies destroyed Cetus Guard 29517 | -6/Cetus | Allies destroyed Cetus Guard 29518 | -6/Cetus | Destroyed Cetus Guard 29522 | -6/Cetus | Allies destroyed Cetus Guard 29533 | -6/Cetus | Discovered new exit (range 21) 29556 | -6/Cetus | Met Revision 17 29656 | -6/Cetus | Entered Archives 29656 | -6/Archives | Accompanied by 6 allies 29735 | -6/Archives | Discovered new exit (range 21) 29767 | -6/Archives | Discovered new exit (range 21) 29815 | -6/Archives | Discovered new exit (range 18) 30083 | -6/Archives | Entered Hub_04(d) 30083 | -6/Hub_04(d) | Accompanied by 5 allies 30129 | -6/Hub_04(d) | Discovered new exit (range 15) 31248 | -6/Hub_04(d) | Discovered new exit (range 22) 31391 | -6/Hub_04(d) | Network Hub disabled 31428 | -6/Hub_04(d) | Network Hub disabled 31431 | -6/Hub_04(d) | Spotted Lightning 31435 | -6/Hub_04(d) | Spotted Lightning 31436 | -6/Hub_04(d) | Spotted Lightning 31454 | -6/Hub_04(d) | Destroyed Lightning 31459 | -6/Hub_04(d) | Destroyed Lightning 31469 | -6/Hub_04(d) | Destroyed Lightning 31485 | -6/Hub_04(d) | Found Prototype Device 31485 | -6/Hub_04(d) | Identified Exp. EM Shield 31502 | -6/Hub_04(d) | Found Prototype Device 31502 | -6/Hub_04(d) | Identified Exp. Phase Shifter 31511 | -6/Hub_04(d) | Found Exp. EM Shield 31599 | -6/Hub_04(d) | Found Exp. EM Shield 31676 | -6/Hub_04(d) | Network Hub disabled 31727 | -6/Hub_04(d) | Spotted Lightning 31807 | -6/Hub_04(d) | Spotted Lightning 31814 | -6/Hub_04(d) | Spotted Lightning 31987 | -6/Hub_04(d) | Destroyed Lightning 32000 | -6/Hub_04(d) | Core integrity fell below 50% 32002 | -6/Hub_04(d) | Found Exp. Targeting Computer 32045 | -6/Hub_04(d) | Destroyed Lightning 32054 | -6/Hub_04(d) | Destroyed Lightning 32106 | -6/Hub_04(d) | Found Exp. EM Shield 32510 | -6/Hub_04(d) | Network Hub disabled 32754 | -6/Hub_04(d) | Discovered new exit (range 14) 32845 | -6/Hub_04(d) | Discovered new exit (range 14) 32883 | -6/Hub_04(d) | First assault squad dispatched 32891 | -6/Hub_04(d) | Spotted B-75 Beast 32915 | -6/Hub_04(d) | Spotted Lightning 32927 | -6/Hub_04(d) | Entered Factory 32927 | -5/Factory | Evolved 2 slots: Power x1, Utility x1 33222 | -5/Factory | Discovered new exit (range 21) 33223 | -5/Factory | Build established: Scavenger-Gunner 33453 | -5/Factory | Identified exit to Garrison 33794 | -5/Factory | Lost 3 allies 33827 | -5/Factory | First assault squad dispatched 33915 | -5/Factory | System corruption reached 10% 34291 | -5/Factory | Entered Garrison 34371 | -5/Garrison | Triggered checkpoint 34421 | -5/Garrison | H-XX Assembler disabled 34588 | -5/Garrison | Spotted B-75 Beast 34628 | -5/Garrison | Destroyed B-75 Beast 34675 | -5/Garrison | Destroyed 12 combat bots 34755 | -5/Garrison | Triggered checkpoint 34814 | -5/Garrison | Garrison Relay disabled 34875 | -5/Garrison | Discovered new exit (range 13) 34947 | -5/Garrison | Build established: Scavenger-Tank 35044 | -5/Garrison | Found Unknown Device 35044 | -5/Garrison | Identified Adv. Force Booster 35107 | -5/Garrison | Spotted B-75 Beast 35133 | -5/Garrison | Destroyed B-75 Beast 35251 | -5/Garrison | Triggered checkpoint 35621 | -5/Garrison | Expanded RIF knowledge: Command Fork 35683 | -5/Garrison | Triggered checkpoint 35707 | -5/Garrison | Discovered new exit (range 10) 35828 | -5/Garrison | Triggered checkpoint 35901 | -5/Garrison | Triggered checkpoint 36011 | -5/Garrison | Triggered checkpoint 36194 | -5/Garrison | Garrison Relay disabled 36506 | -5/Garrison | Discovered new exit (range 15) 36510 | -5/Garrison | Build established: Bothacker-Tank 36561 | -5/Garrison | Entered Factory 36839 | -5/Factory | Discovered new exit (range 5) 36917 | -5/Factory | Central database locked down 37161 | -5/Factory | First assault squad dispatched 37444 | -5/Factory | Destroyed 8 combat bots 37665 | -5/Factory | Destroyed 8 combat bots 38357 | -5/Factory | Discovered new exit (range 5) 38471 | -5/Factory | Repaired Centrium Medium Armor Plating 38976 | -5/Factory | Build established: Scavenger-Tank 39200 | -5/Factory | Identified exit to Garrison 39240 | -5/Factory | Entered Garrison 39336 | -5/Garrison | Expanded RIF knowledge: Alert ID Control 39766 | -5/Garrison | Triggered checkpoint 39813 | -5/Garrison | Expanded RIF knowledge: Code Merge 39834 | -5/Garrison | Triggered checkpoint 39919 | -5/Garrison | Garrison Relay disabled 39932 | -5/Garrison | Triggered checkpoint 39951 | -5/Garrison | Discovered new exit (range 6) 40037 | -5/Garrison | Discovered new exit (range 19) 40230 | -5/Garrison | Triggered checkpoint 40278 | -5/Garrison | Garrison Relay disabled 40280 | -5/Garrison | Garrison Relay disabled 40544 | -5/Garrison | Entered Factory 40544 | -5/Factory | Accompanied by 3 allies 40587 | -5/Factory | Build established: Scavenger-Gunner 40614 | -5/Factory | Identified exit to Garrison 40616 | -5/Factory | Entered Garrison 40616 | -5/Garrison | Accompanied by 3 allies 40637 | -5/Garrison | Triggered checkpoint 40721 | -5/Garrison | Lost 3 allies 40959 | -5/Garrison | Spotted B-75 Beast 40965 | -5/Garrison | Assimilated Beast 6a with formatsys_high 40971 | -5/Garrison | P-70 Sage assimilated allied Beast 6a 40991 | -5/Garrison | Destroyed Beast 6a 41024 | -5/Garrison | Lost 7 parts (2n1u4w) 41043 | -5/Garrison | Destroyed 8 combat bots 41144 | -5/Garrison | Garrison Relay disabled 41240 | -5/Garrison | Triggered checkpoint 41303 | -5/Garrison | Garrison Relay disabled 41348 | -5/Garrison | Triggered checkpoint 41369 | -5/Garrison | Triggered checkpoint 41381 | -5/Garrison | Core integrity fell below 50% 41385 | -5/Garrison | Triggered checkpoint 41600 | -5/Garrison | Triggered checkpoint 41613 | -5/Garrison | Build established: Botlord-Gunner 41698 | -5/Garrison | Garrison Relay disabled 41931 | -5/Garrison | Discovered new exit (range 14) 41958 | -5/Garrison | Expanded RIF knowledge: Hotswap 42167 | -5/Garrison | Build established: Scavenger-Tank 42203 | -5/Garrison | Discovered new exit (range 8) 42288 | -5/Garrison | Garrison Relay disabled 42577 | -5/Garrison | Entered Factory 42577 | -4/Factory | Evolved 2 slots: Propulsion x1, Utility x1 42799 | -4/Factory | Unchained authorized (V4-D3R) 42827 | -4/Factory | First assault squad dispatched 43046 | -4/Factory | Garrison activated, responded to threat 43087 | -4/Factory | Destroyed 7 combat bots 43159 | -4/Factory | Identified exit to Garrison 43246 | -4/Factory | Entered Garrison 43275 | -4/Garrison | Expanded RIF knowledge: Zone Cloak 43302 | -4/Garrison | Found embedded Infiltrators 43324 | -4/Garrison | Triggered checkpoint 43472 | -4/Garrison | Triggered checkpoint 43515 | -4/Garrison | Spotted B-86 Titan 43527 | -4/Garrison | Destroyed B-86 Titan 43560 | -4/Garrison | Triggered checkpoint 43700 | -4/Garrison | Discovered new exit (range 12) 43918 | -4/Garrison | Triggered checkpoint 44200 | -4/Garrison | Discovered new exit (range 11) 44285 | -4/Garrison | Triggered checkpoint 44382 | -4/Garrison | Discovered new exit (range 21) 44532 | -4/Garrison | Entered Research 44532 | -3/Research | Evolved 2 slots: Propulsion x1, Utility x1 44566 | -3/Research | Discovered new exit (range 14) 44732 | -3/Research | Revision forces began assault on 0b10 44794 | -3/Research | Met up with Revision 17++ 45176 | -3/Research | Identified exit to Quarantine 45190 | -3/Research | Spotted B-86 Titan 45232 | -3/Research | Research terminal network offline 45474 | -3/Research | Spotted Striker 45601 | -3/Research | Found Unknown Launcher 45601 | -3/Research | Identified Gamma Bomb Array 46144 | -3/Research | Spotted Striker 46165 | -3/Research | Destroyed Striker 46191 | -3/Research | Lost 4 allies 46269 | -3/Research | Spotted Striker 46579 | -3/Research | Spotted Executioner 46581 | -3/Research | Spotted Striker 46584 | -3/Research | Destroyed Executioner 46594 | -3/Research | Destroyed Striker 46637 | -3/Research | Found Prototype Device 46637 | -3/Research | Identified Adv. Kinecellerator 47005 | -3/Research | Identified exit to Garrison 47005 | -3/Research | Entered Garrison 47160 | -3/Garrison | Triggered checkpoint 47173 | -3/Garrison | Spotted B-86 Titan 47177 | -3/Garrison | Assimilated Titan 8a with formatsys_high 47189 | -3/Garrison | Triggered checkpoint 47336 | -3/Garrison | Learned Research security intel 47342 | -3/Garrison | Discovered new exit (range 12) 47361 | -3/Garrison | Identified exit to Research 47417 | -3/Garrison | Triggered checkpoint 47447 | -3/Garrison | Triggered checkpoint 47494 | -3/Garrison | Destroyed 8 combat bots 47563 | -3/Garrison | Discovered exit to Research (range 22) 47666 | -3/Garrison | Garrison Relay disabled 47922 | -3/Garrison | Destroyed 10 combat bots 47982 | -3/Garrison | Found embedded Infiltrators 48021 | -3/Garrison | Triggered checkpoint 48046 | -3/Garrison | Garrison Relay disabled 48118 | -3/Garrison | Lost 3 allies 48185 | -3/Garrison | Discovered exit to Research (range 86) 48185 | -3/Garrison | Discovered exit to Research (range 80) 48185 | -3/Garrison | Discovered exit to Research (range 23) 48547 | -3/Garrison | Expanded RIF knowledge: Watcher Feeds 48565 | -3/Garrison | Build established: Commander-Tank 48729 | -3/Garrison | Entered Research 48729 | -2/Research | Accompanied by 14 allies 48729 | -2/Research | Evolved 2 slots: Utility x1, Weapon x1 48818 | -2/Research | Garrison activated, responded to threat 49015 | -2/Research | Discovered new exit (range 17) 49086 | -2/Research | Identified exit to Access 49311 | -2/Research | Unchained authorized (V4-D3R) 49330 | -2/Research | Lost 6 allies 49585 | -2/Research | Build established: Scavenger-Tank 50388 | -2/Research | P-80 Master assimilated allied Rainmaker 8c 51229 | -2/Research | First assault squad dispatched 51443 | -2/Research | Destroyed 8 combat bots 51858 | -2/Research | Spotted B-90 Cyclops 53288 | -2/Research | System corruption reached 10% 53304 | -2/Research | Destroyed 9 combat bots 53312 | -2/Research | System corruption reached 30% 53335 | -2/Research | Entered Access 53335 | -1/Access | Evolved 2 slots: Utility x2 53366 | -1/Access | Lost 19 parts (2p3n9u5w) 53600 | -1/Access | Lost 6 parts (1p1n1u3w) 53625 | -1/Access | System corruption reached 10% 53654 | -1/Access | Released all parts (10) 53788 | -1/Access | Lost 3 parts (1p1n1u) 53832 | -1/Access | Spotted B-99 Colossus 53835 | -1/Access | First assault squad dispatched 53888 | -1/Access | Lost 3 parts (2n1w) 54011 | -1/Access | Spotted B-99 Colossus 54011 | -1/Access | Spotted B-99 Colossus 54088 | -1/Access | Discovered new exit (range 5) 54089 | *** | Escaped! Last Messages --------------- 54070_ Imp. System Restoration Module purges 1% system corruption (16%). 54082_ Connecting with Terminal... >>Trojan(Botnet) Trojan loaded successfully. Testing... Terminal linked with 0 systems. Awaiting botnet instructions. 54082_ Connecting with Terminal... >>Trojan(Operators) Trojan loaded successfully. Testing... Operator tracking enabled and active. 54085_ ALERT: Unidentified disturbance in Zone 7N, assault force dispatched. 54087_ System corrupted: Energy discharge (-56). 54087_ Connecting with Terminal... >>Open(Door) Sealed Barrier opened. 54088_ The Access Shell folds into the floor. 54088_ EXIT=FOUND Map ----- +----------------------------------------------------+ | # #????????????# """""" #????????????? | | # ! #????????????# """""" #????#???????? | | # " #????????????# "" #??? #???????? | | # """ #????????????# "" #??? #???????? | | # """ #?????????????? #??? #???????? | | # " #???????????????? #??? #???????? | | # #?????????????????? #??? #???????? | | # #???????????????????? #### #???????? | | #####+###########################+### #???????? | | "" #???????? | | "T #???????? | | #####+######+######################## #???????? | | # # #???????????## ##???????? | | + * # #????????????# #????????? | | # " # #????????????# #????????? | | # """ # = #????????????# #????????? | | # """ # #????????????# #????????? | | # " # #????????????# #????????? | | # ################????????????# #????????? | | # #???????????????????###?????# #????????? | | # #??????????########## ####### #????????? | | ##########??????????" #????????? | | ????????????? ??????" #????????? | | ########## ?????" #????????? | | ????" #????????? | | ????" "@ kk#????????? | | ????" "" #????????? | | ????" #????????? | | ########## ????" #????????? | | #???????????????????" """ """ #????????? | | #???????????????????" """T""" #????????? | | #???????????????????########## ####### #????????? | | #????????????????????????????###?????? #????????? | | ##############???????????????????????? #????????? | | # #???????????????????????? #????????? | | # #???????????????????????? #????????? | | # #???????????????????????? #????????? | | # #???????????????????????? #????????? | | + """"" ??????????????????????????? #????????? | | # """"""""??????????????????????????? ?????????? | | # """""""????????????????????????????? ?????????? | | # """""???????????????????????????????????????? | | # ?????????????????????????????????????? | | # * #???????????????????????????????????? | | # #???????????????????????????????????? | | # #???????????????????????????????????? | | ##############???????????????????????????????????? | | #????????????????????????????????????????????????? | | #????????????????????????????????????????????????? | | #????????????????????????????????????????????????? | +----------------------------------------------------+ Best States ------------- Heat Dissipation 97 Energy Generation 45 Energy Capacity 800 Matter Stores 500 Matter Capacity 500 Sight Range 23 Terrain Scan Density 210 Jamming Range 12 Additional Mass Support 9 EM Shielding 3 Armor Coverage 1600 Resistance: KI 30 Resistance: EM 90 Core Shielding 20 Point Defense Rating 80 Weapon Cycling 15 Phase Shifting 20 Evasion (%) 65 Targeting Accuracy 20 Melee Accuracy 8 Core Analysis 8 Recoil Reduction 6 Matter Filtering 30 Kinecelleration 50 Offensive Hacking 10 Defensive Hacking 12 Relay Coupler Types 2 Relay Coupler Value 120 Item Schematics ----------------- Huge Storage Unit | -10/Materials | Hacked Hcp. Storage Unit | -10/Materials | Hacked Robot Schematics ------------------ None Fabricated ------------ Nothing Repaired ---------- Lgt. Cannon | 61% | -10/Materials Lgt. Treads | 45% | -10/Materials Med. Armor Plating | 14% | -9/Materials Lgt. EM Pulse Cannon | 20% | -8/Materials Cld. Ion Engine | 36% | -8/Materials Lgt. Armor Plating | 38% | -8/Materials Lgt. Treads | 51% | -8/Materials Autogun | 36% | -8/Materials Hvy. Treads | 91% | -7/Factory | Corrupted Hvy. Treads | 54% | -6/Factory | Broken Imp. Heavy Treads | 40% | -6/Factory Centrium Medium Armor Plating | 27% | -5/Factory Studied --------- Gauss Rifle | -7/Factory | Hacked KE Penetrator | -5/Factory | Hacked Lrn. Missile Launcher | -5/Factory | Hacked Alien Tech Used ----------------- None Achievements -------------- My Business Is Booming Challenges ------------ None Game ------ Seed BiometalAluminumChargecaster Manual? 0 Play Time 05:45:38 Cumulative 1642.7 hours Start 2026.03.05 @ 00:37:31 End 2026.03.05 @ 22:03:01 Sessions 9 Manual Loads 0 Difficulty Rogue Special Mode None Game No. 1174 Rogue 1134 Adventurer 40 Explorer 0 Win Type 0 Total 213 Types 97/11/74/2/2/4/16/2/1/4 Lore% 97 Gallery% 96 Achievement% 85 Wizard Run 0 Options --------- Layout 0 ASCII 0 Keyboard 0 Movement Numpad Keybinds 0 Fullscreen 0 Font 20/Terminus Map View 76x50 Zoom Use 0% Tactical HUD 1 Map Filters NONE Filters NONE Steam 1 RUN: 2e51a46d-31f9-4575-9c3e-3eb86528e809